{"text_format":"1","workbook":"xlsx","n_sheets":11,"sheets":["MATRIZ DE INDICADORES ","----1","----2","MIU-1","MIU-2","MIU-3","MIU-4","MIU-6 en construcción","MIU-5 ","ACTUALIZACIONES ","ITEM"],"not_rendered":{"charts":8,"images":5,"macros":1,"external_links":2,"defined_names":16,"comments":5,"pivot_tables":0},"unopened":[],"bounds":{"document_bytes":16777216,"sheet_cells":100000,"rows_first":2000,"rows_last":500,"rows_between":2000,"halvings":0,"cell_chars":16384,"cell_head_chars":4096},"cells_cut":0,"cells_raw":0,"read":"whole","date_system":"1900"}

{"sheet":"MATRIZ DE INDICADORES ","index":0,"n_rows":70,"n_cols":20,"rows_kept":70,"cut":false,"hidden":false,"merged":[[12,1,33,1],[31,17,33,17],[31,18,33,18],[31,19,33,19],[12,2,30,2],[12,3,30,3],[12,4,30,4],[31,7,33,7],[31,8,33,8],[31,9,33,9],[31,10,33,10],[31,16,33,16],[31,2,33,2],[31,3,33,3],[31,4,33,4],[31,5,33,5],[31,6,33,6],[26,10,30,10],[26,16,30,16],[26,17,30,17],[26,18,30,18],[21,19,25,19],[26,19,30,19],[26,5,30,5],[26,6,30,6],[26,7,30,7],[26,8,30,8],[26,9,30,9],[21,9,25,9],[21,10,25,10],[21,16,25,16],[21,17,25,17],[21,18,25,18],[12,6,16,6],[21,5,25,5],[21,6,25,6],[21,7,25,7],[21,8,25,8],[17,17,20,17],[17,18,20,18],[17,19,20,19],[12,8,16,8],[12,7,16,7],[17,7,20,7],[17,8,20,8],[17,9,20,9],[17,10,20,10],[17,16,20,16],[1,17,1,19],[1,1,4,2],[1,3,1,16],[2,3,2,16],[3,3,4,16],[49,1,49,19],[2,17,2,19],[3,17,3,19],[4,17,4,19],[9,1,10,19],[6,15,7,16],[48,1,48,19],[12,10,16,10],[12,9,16,9],[12,5,16,5],[12,16,16,16],[12,17,16,17],[12,18,16,18],[12,19,16,19],[17,5,20,5],[17,6,20,6]]}
[]
[null,null,null,"MACROPROCESO ESTRATÉGICO",null,null,null,null,null,null,null,null,null,null,null,null,null,"CÓDIGO: ESGr027"]
[null,null,null,"PROCESO GESTIÓN SISTEMAS INTEGRADOS - CALIDAD",null,null,null,null,null,null,null,null,null,null,null,null,null,"VERSIÓN: 8"]
[null,null,null,"MATRIZ DE MEDICIÓN Y SEGUIMIENTO A LOS PROCESOS DE GESTIÓN",null,null,null,null,null,null,null,null,null,null,null,null,null,"VIGENCIA: 2023-07-28"]
[null,null,null,null,null,null,null,null,null,null,null,null,null,null,null,null,null,"PÁGINA: 1 de 7"]
[]
[null,null,null,null,null,null,null,null,null,null,null,null,null,null,null,"FECHA DE ACTUALIZACIÓN:",null,"AÑO","MES","DÍA"]
[null,null,null,null,null,null,null,null,null,null,null,null,null,null,null,null,null,2024,7,22]
[]
[]
[]
[null,"PROCESO GESTIÓN","FRENTES DEL PLAN ESTRATÉGICO","LINEAMIENTOS DE LA POLÍTICA DE CALIDAD","OBJETIVOS DE CALIDAD","OBJETIVOS ESPECÍFICOS","NOMBRE INDICADOR","FÓRMULA","TIPO DE INDICADOR","SEGUIMIENTO MEDICIÓN","META","ACTIVIDAD","RESPONSABLE DE LA ACTIVIDAD","¿QUÉ RECURSOS SE REQUIEREN?","FECHA EJECUCIÓN DE ACTIVIDADES","EVIDENCIA","¿CUÁNDO FINALIZARÁ?","RESULTADO ","NIVEL OBTENIDO","ACCESO"]
[null,"Interacción Universitaria","Frente Estratégico III: Educación para la vida, los valores democráticos, la civilidad y la libertad","La Universidad de Cundinamarca se compromete con el cumplimiento de requisitos y la satisfacción de las necesidades y expectativas de la comunidad universitaria a través de la adopción del campo multidimensional de aprendizaje, que consolida una misión trascendente y de impacto desde sus funciones sustantivas","Promover una misión trascendente y de impacto a través del fortalecimiento de los resultados planteados por la Universidad de Cundinamarca en sus funciones sustantivas.","Lograr una eficacia del 90% frente a la prestación del servicio de Educación Continuada al usuario durante el 2024 con verificación semestral","Satisfacción del usuario del servicio de la Educación Continuada","(# Evaluaciones Calificadas ≥ 4) * 100 / Total Evaluaciones","Eficacia","Semestral",0.9,"Verificar y aprobar  ficha técnica del evento o actividad a desarrollar y la documentación pertinente para el mismo","Dirección de Interacción Social Universitaria","Equipos de computo, herramientas ofimáticas, recurso humano, información documentada",2024,"MIUr008\nMIUr014\nMIUr015\nMIUr021","2024-12-01",0.95,"EXCELENTE","MIU-1"]
[null,null,null,null,null,null,null,null,null,null,null,"Divulgar el evento o actividad por medio de los gestores del conocimiento ","Dirección de Interacción Social Universitaria","Recurso Humano",2024,"N/A"]
[null,null,null,null,null,null,null,null,null,null,null,"Consolidar listado de inscritos para envío al docente responsable de la actividad","Dirección de Interacción Social Universitaria","Información documentada, recurso humano, herramientas ofimáticas",2024,"Correo electrónico"]
[null,null,null,null,null,null,null,null,null,null,null,"Implementar procedimiento establecidos en el proceso MIUP05 - Educación Continuada","Dirección de Interacción Social Universitaria","Recurso Humano, Información documentada, Aplicativo de Planes de Mejoramiento (tecnológico)",2024,"Registros (actas o informes) de los seguimientos en el aplicativo"]
[null,null,null,null,null,null,null,null,null,null,null,"Evaluar mediante el indicador establecido","Dirección de Interacción Social Universitaria","Recurso Humano, Información documentada","Semestral 2024","Reporte del indicador - Ficha técnica"]
[null,null,null,null,null,"Incrementar al 85% el resultado del indicador de satisfacción de los estudiantes frente al desempeño en la práctica de pasantías durante el 2023","Satifacción del estudiante frente al despempeño en la práctica de pasantía","(# Evaluaciones Calificadas ≥ 4) * 100 / Total Evaluaciones","Eficacia","Semestral",0.85,"Suscribir convenio y/o acuerdos de voluntades ","Dirección de Interacción Social Universitaria -Dirección Jurídica - Empresas","Información documentada, recurso humano, herramientas ofimáticas, equipos de computo",2023,"Convenio y/o acuerdos de voluntades","2023-12-01",{"$f":"'MIU-2'!E49","v":""},"EXCELENTE","MIU-2"]
[null,null,null,null,null,null,null,null,null,null,null,"Solicitar intención a los programas para realizar práctica o pasantía","Estudiantes - Programas - Empresas","Información documentada, recurso humano, herramientas ofimáticas, equipos de computo",2023,"Lista de chequeo "]
[null,null,null,null,null,null,null,null,null,null,null,"Realizar práctica o pasantía","Estudiantes - Programas - Empresas","Información documentada, recurso humano, herramientas ofimáticas, equipos de computo",2023,"Informe de práctica o pasantía (mensual)"]
[null,null,null,null,null,null,null,null,null,null,null,"Evaluar mediante el indicador establecido","Dirección de Interacción Social Universitaria","Recurso Humano, Información documentada","Semestral 2023","Reporte del indicador - Ficha técnica"]
[null,null,null,null,null,"Incrementar al 95% el resultado del indicador de satisfacción de las Instituciones o Empresas hacia el desempeño de la práctica o pasantía durante el 2023","Satisfacción de la Institución o Empresa hacia el desempeño de la práctica o pasantía","(# Evaluaciones Calificadas ≥ 4) * 100 / Total Evaluaciones","Eficacia","Semestral",0.95,"Recibir de la empresa la carta de intención y los documentos requeridos para la suscripción del convenio","Dirección de Interacción Social Universitaria","Información documentada, recurso humano, herramientas ofimáticas, equipos de computo",2023,"Carta de intención,\ndocumentos descritos en el MIUP06","2023-12-01",{"$f":"'MIU-3'!E48","v":0.90128755364806867},"BUENO","MIU-3"]
[null,null,null,null,null,null,null,null,null,null,null,"Suscribir convenio y/o acuerdos de voluntades ","Dirección de Interacción Social Universitaria -Dirección Jurídica - Empresas","Información documentada, recurso humano, herramientas ofimáticas, equipos de computo",2023,"Convenio y/o acuerdos de voluntades"]
[null,null,null,null,null,null,null,null,null,null,null,"Seleccionar el escenario de práctica","Estudiantes - Programas Académicos","Información documentada, recurso humano, herramientas ofimáticas, equipos de computo",2023,"Registro"]
[null,null,null,null,null,null,null,null,null,null,null,"Realizar práctica o pasantía","Estudiantes - Programas Académicos - Empresas","Información documentada, recurso humano, herramientas ofimáticas, equipos de computo",2023,"Informe de práctica o pasantía (mensual)"]
[null,null,null,null,null,null,null,null,null,null,null,"Evaluar mediante el indicador establecido","Dirección de Interacción Social Universitaria","Recurso Humano, Información documentada","Semestral 2023","Reporte del indicador - Ficha técnica"]
[null,null,null,null,null,"Lograr el 80% del uso de los convenios que se encuentran vigentes para el 2024, con el fin de dinamizar la interacción con la sociedad, propendiendo por el mejoramiento de la calidad de vida de las comunidades","Vinculación efectiva con la comunidad y el sector productivo","#convenios en uso * 100 / # total de convenios vigentes","Acreditación","Semestral",0.8,"Recibir de la empresa la carta de intención y los documentos requeridos para la suscripción del convenio","Dirección de Interacción Social Universitaria","Información documentada, recurso humano, herramientas ofimáticas, equipos de computo",2024,"Carta de intención,\ndocumentos descritos en el MIUP06","2024-12-31",0.82,"EXCELENTE","MIU-5'"]
[null,null,null,null,null,null,null,null,null,null,null,"Revisar que la documentación recibida cumpla con los requisitos","Dirección de Interacción Social Universitaria","Información documentada, recurso humano, herramientas ofimáticas, equipos de computo",2024,"MIUr036 - HOJA DE RUTA CONVENIOS"]
[null,null,null,null,null,null,null,null,null,null,null,"Suscribir convenio y/o acuerdos de voluntades ","Dirección de Interacción Social Universitaria -Dirección Jurídica - Empresas","Información documentada, recurso humano, herramientas ofimáticas, equipos de computo",2024,"Convenio y/o acuerdos de voluntades"]
[null,null,null,null,null,null,null,null,null,null,null,"Notificar a la empresa o programa solicitante ","Dirección de Interacción Social Universitaria","Información documentada, recurso humano, herramientas ofimáticas, equipos de computo",2024,"Correo electrónico, Minuta"]
[null,null,null,null,null,null,null,null,null,null,null,"Evaluar mediante el indicador establecido","Dirección de Interacción Social Universitaria","Recurso Humano, Información documentada","Semestral 2024","Reporte del indicador - Ficha técnica"]
[null,null,"Frente Estratégico VI: Organización Universitaria Digital","Se legitima como una organización social del conocimiento y el aprendizaje que se compromete con el pensamiento basado en riesgos y el mejoramiento continuo mediante buenas prácticas administrativas y académicas en búsqueda de la acreditación de programas y la acreditación institucional, enfocándose en el bienestar de la comunidad universitaria como factor constitutivo de la vida y la libertad y la consolidación de una organización universitaria inteligente con alma y corazón.","Mejorar continuamente el desempeño de los procesos a través de la implementación de buenas prácticas institucionales y de la aplicación de los mecanismos dispuestos por la Universidad de Cundinamarca, para la constitución de una organización universitaria inteligente con alma y corazón.","Lograr en un 95% la eficacia en la ejecución de las actividades de Proyección Social durante el 2024 con un seguimiento semestral","Evaluación de las actividades de Proyección Social","(# Evaluaciones Calificadas ≥ 4) * 100 / Total Evaluaciones","Eficacia","Semestral",0.95,"Aperturar la convocatoria interna de proyectos de Interacción Social Universitaria","Dirección de Interacción Social Universitaria - Vicerrectoría Académica ","Información documentada, recurso humano, herramientas ofimáticas, equipos de computo","Semestral 2024","Términos de referencia, Proyectos aprobados","2024-12-31",0.96,"EXCELENTE","MIU-4"]
[null,null,null,null,null,null,null,null,null,null,null,"Implementar el procedimiento MIUP07 - INTERACCIÓN SOCIAL","Programas Académicos","Información documentada, recurso humano, herramientas ofimáticas, equipos de computo","Semestral 2024","Registros del procedimiento MIUP07"]
[null,null,null,null,null,null,null,null,null,null,null,"Evaluar mediante el indicador establecido","Dirección de Interacción Social Universitaria","Recurso Humano, Información documentada","Semestral 2024","Reporte del indicador - Ficha técnica"]
[]
[]
[]
[]
[]
[]
[]
[]
[]
[]
[]
[]
[]
[]
[null,"Diagonal 18 No. 20-29 Fusagasugá – Cundinamarca\nTeléfono (601)  8281483 Línea Gratuita 018000180414\nwww.ucundinamarca.edu.co   E-mail:  info@ucundinamarca.edu.co\nNIT: 890.680.062-2                                                                             "]
[null,"Documento controlado por el Sistema de Gestión de la Calidad\nAsegúrese que corresponde a la última versión consultando el Portal Institucional"]
[]
[]
[]
[]
[]
[]
[]
[]
[]
[]
[]
[]
[]
[]
[null,null,null,"LINEAMIENTOS DE LA POLÍTICA DE CALIDAD","OBJETIVOS DE CALIDAD","ALINEACIÓN DE LOS INDICADORES CON LOS DOCUMENTOS ESTRATÉGICOS Y LOS OBJETIVOS DE CALIDAD"]
[null,null,null,"LINEAMIENTOS DE LA POLÍTICA DE SEGURIDAD Y SALUD EN EL TRABAJO","OBJETIVOS DE SEGURIDAD Y SALUD EN EL TRABAJO","ALINEACIÓN DE LOS INDICADORES CON LOS DOCUMENTOS ESTRATÉGICOS Y LOS OBJETIVOS DE SEGURIDAD Y SALUD EN EL TRABAJO"]
[null,null,null,"LINEAMIENTOS DE LA POLÍTICA DE AMBIENTAL","OBJETIVOS DE AMBIENTAL","ALINEACIÓN DE LOS INDICADORES CON LOS DOCUMENTOS ESTRATÉGICOS Y LOS OBJETIVOS DE AMBIENTAL"]
[null,null,null,"LINEAMIENTOS DE LA POLÍTICA DE SEGURIDAD DE LA INFORMACIÓN","OBJETIVOS DE SEGURIDAD DE LA INFORMACIÓN","ALINEACIÓN DE LOS INDICADORES CON LOS DOCUMENTOS ESTRATÉGICOS Y LOS OBJETIVOS DE SEGURIDAD DE LA INFORMACIÓN"]
[null,null,null,"LINEAMIENTOS DE LA POLÍTICA DE SEGURIDAD DE ANTISOBORNO","OBJETIVOS DE SEGURIDAD DE ANTISOBORNO","ALINEACIÓN DE LOS INDICADORES CON LOS DOCUMENTOS ESTRATÉGICOS Y LOS OBJETIVOS DE SEGURIDAD DE ANTISOBORNO"]
[null,null,null,"LINEAMIENTOS DE LA POLÍTICA DE LA CONCILIACIÓN DE LA VIDA PERSONAL, FAMILIAR Y LABORAL","OBJETIVOS DE LA CONCILIACIÓN DE LA VIDA PERSONAL, FAMILIAR Y LABORAL","ALINEACIÓN DE LOS INDICADORES CON LOS DOCUMENTOS ESTRATÉGICOS Y LOS OBJETIVOS DE LA CONCILIACIÓN DE LA VIDA PERSONAL, FAMILIAR Y LABORAL"]

{"sheet":"----1","index":1,"n_rows":99,"n_cols":15,"rows_kept":99,"cut":false,"hidden":true,"merged":[[56,2,56,5],[56,6,56,9],[56,10,56,14],[59,2,59,5],[59,6,59,9],[59,10,59,14],[57,2,57,5],[57,6,57,9],[57,10,57,14],[58,2,58,5],[58,6,58,9],[58,10,58,14],[54,2,54,5],[54,6,54,9],[54,10,54,14],[55,2,55,5],[55,6,55,9],[55,10,55,14],[26,20,27,20],[26,9,26,14],[26,17,27,17],[26,18,27,19],[53,2,53,5],[53,6,53,9],[53,10,53,14],[41,9,41,14],[51,2,51,14],[52,2,52,5],[52,6,52,9],[52,10,52,14],[44,2,44,14],[26,21,27,21],[27,9,32,14],[26,2,42,8],[22,11,23,12],[19,9,21,10],[19,11,19,14],[22,7,23,8],[22,4,23,6],[18,17,25,17],[18,18,25,19],[18,20,25,20],[22,13,23,14],[25,2,25,14],[33,9,33,14],[34,9,39,14],[40,9,40,14],[16,15,17,15],[16,16,17,16],[16,17,17,17],[16,18,17,21],[18,21,25,21],[17,4,18,10],[17,11,18,12],[17,13,18,14],[17,2,18,3],[22,2,23,3],[22,9,23,10],[19,2,21,3],[19,7,21,8],[19,4,21,6],[9,2,10,14],[11,2,11,3],[11,4,11,7],[11,8,11,9],[11,10,11,14],[1,1,3,2],[4,2,7,3],[4,4,4,11],[4,12,4,14],[5,4,5,11],[5,12,5,14],[6,4,7,11],[6,12,6,14],[7,12,7,14],[12,2,12,3],[12,4,12,14],[13,2,13,3],[13,4,13,14],[14,2,14,14],[15,2,15,14],[16,2,16,3],[16,11,16,12],[16,13,16,14],[16,7,16,8],[16,9,16,10],[16,4,16,6]]}
[]
[null,"      REGRESAR"]
[]
[]
[null,null,null,null,"MACROPROCESO ESTRATÉGICO",null,null,null,null,null,null,null,"CÓDIGO: ESGr027"]
[null,null,null,null,"PROCESO GESTIÓN SISTEMAS INTEGRADOS",null,null,null,null,null,null,null,"VERSIÓN: 7"]
[null,null,null,null,"MATRIZ DE MEDICIÓN Y SEGUIMIENTO A LOS PROCESOS DE GESTIÓN",null,null,null,null,null,null,null,"VIGENCIA: 2020-03-31"]
[null,null,null,null,null,null,null,null,null,null,null,null,"PÁGINA: 1 de 1"]
[]
[null,null,"FICHA DE INDICADOR"]
[]
[null,null,"MACROPROCESO",null,null,null,null,null,"NOMBRE DEL INDICADOR"]
[null,null,"PROCESO GESTIÓN"]
[null,null,"RESPONSABLE DE MEDICIÓN"]
[]
[null,null,"1. COMPORTAMIENTO DE INDICADOR"]
[null,null,"CLASIFICACIÓN DE LA MEDICIÓN ",null,2,null,null,"TIPO DE INDICADOR",null,null,null,"META ANUAL"]
[null,null,"FORMULA",null,null,null,null,null,null,null,null,"UNIDAD DE MEDIDA"]
[]
[null,null,"TENDENCIA",null,null,null,null,"NIVEL DE SEGREGACIÓN *",null,null,null,"ESCALA"]
[null,null,null,null,null,null,null,null,null,null,null,"Deficiente","Aceptable","Bueno","Excelente"]
[]
[null,null,"ORIGEN DE DATOS",null,null,null,null,"FRECUENCIA DE LA MEDICIÓN",null,"TRIMESTRAL",null,"FRECUENCIA DE RESULTADO",null,"ANUAL"]
[]
[]
[null,null,"RESULTADOS"]
[null,null,null,null,null,null,null,null,null,"ANÁLISIS DE DATOS\nLos datos indican un crecimiento en los acompañamientos entre el primer trimestre y \nel segundo trimestre de mas del 100%, por la contratación del personal de la oficina\nEn el tercer trimestre se muestra un decrecimiento con respecto al periodo anterior\npor las vacaciones a mitad de año, las personas se reintegraron entre julio y agosto."]
[]
[]
[]
[]
[]
[]
[null,null,null,null,null,null,null,null,null,"ACCIÓN FORMULADA\nReformular la meta para el próximo año dependiendo de los recursos asignados."]
[]
[]
[]
[]
[]
[]
[null,null,null,null,null,null,null,null,null,"RESPONSABLE "]
[null,null,null,null,null,null,null,null,null,{"$f":"E14","v":0}]
[]
[]
[null,null,"PERIODO DE EVALUACIÓN"]
[null,null,"MES",{"$f":"IF(J23=\"MENSUAL\",\"ENERO\",IF(J23=\"TRIMESTRAL\",\"MARZO\",IF(J23=\"SEMESTRAL\",\"JUNIO\",IF(J23=\"ANUAL\",YEAR(TODAY()),\"\"))))","v":"MARZO"},{"$f":"IF(J23=\"MENSUAL\",\"FEBRERO\",IF(J23=\"TRIMESTRAL\",\"JUNIO\",IF(J23=\"SEMESTRAL\",\"DICIEMBRE\",\"\")))","v":"JUNIO"},{"$f":"IF(J23=\"MENSUAL\",\"MARZO\",IF(J23=\"TRIMESTRAL\",\"SEPTIEMBRE\",\"\"))","v":"SEPTIEMBRE"},{"$f":"IF(J23=\"MENSUAL\",\"ABRIL\",IF(J23=\"TRIMESTRAL\",\"DICIEMBRE\",\"\"))","v":"DICIEMBRE"},{"$f":"IF(J23=\"MENSUAL\",\"MAYO\",\"\")","v":""},{"$f":"IF(J23=\"MENSUAL\",\"JUNIO\",\"\")","v":""},{"$f":"IF(J23=\"MENSUAL\",\"JULIO\",\"\")","v":""},{"$f":"IF(J23=\"MENSUAL\",\"AGOSTO\",\"\")","v":""},{"$f":"IF(J23=\"MENSUAL\",\"SEPTIEMBRE\",\"\")","v":""},{"$f":"IF(J23=\"MENSUAL\",\"OCTUBRE\",\"\")","v":""},{"$f":"IF(J23=\"MENSUAL\",\"NOVIEMBRE\",\"\")","v":""},{"$f":"IF(J23=\"MENSUAL\",\"DICIEMBRE\",\"\")","v":""}]
[null,null,{"$f":"G18","v":0}]
[null,null,{"$f":"G19","v":0}]
[null,null,"VALOR ",{"$f":"IFERROR(IF($E$17=1,D47/D48,IF($E$17=2,D47,\"\")),\"\")","v":0},{"$f":"IFERROR(IF($E$17=1,E47/E48,IF($E$17=2,E47,\"\")),\"\")","v":0},0,0,0,0,0,0,0,0,0,0]
[null,null,"META PONDERADA",{"$f":"IF(AND(N23=\"ANUAL\",J23=\"MENSUAL\"),N17/12,IF(AND(N23=\"ANUAL\",J23=\"TRIMESTRAL\"),N17/4,IF(AND(N23=\"ANUAL\",J23=\"SEMESTRAL\"),N17/2,IF(AND(N23=\"ANUAL\",J23=\"ANUAL\"),N17,IF(AND(N23=\"SEMESTRAL\",J23=\"MENSUAL\"),N17/6,IF(AND(N23=\"SEMESTRAL\",J23=\"TRIMESTRAL\"),N17/2,IF(AND(N23=\"SEMESTRAL\",J23=\"SEMESTRAL\"),N17,IF(AND(N23=\"SEMESTRAL\",J23=\"ANUAL\"),\"REVISAR FRECUENCIAS\",IF(AND(N23=\"TRIMESTRAL\",J23=\"MENSUAL\"),N17/3,IF(AND(N23=\"TRIMESTRAL\",J23=\"TRIMESTRAL\"),N17,IF(AND(N23=\"TRIMESTRAL\",J23=\"SEMESTRAL\"),\"REVISAR FRECUENCIAS\",IF(AND(N23=\"TRIMESTRAL\",J23=\"ANUAL\"),\"REVISAR FRECUENCIAS\",IF(AND(N23=\"MENSUAL\",J23=\"MENSUAL\"),N17,IF(AND(N23=\"MENSUAL\",J23=\"TRIMESTRAL\"),\"REVISAR FRECUENCIAS\",IF(AND(N23=\"MENSUAL\",J23=\"SEMESTRAL\"),\"REVISAR FRECUENCIAS\",IF(AND(N23=\"MENSUAL\",J23=\"ANUAL\"),\"REVISAR FRECUENCIAS\",\"\"))))))))))))))))","v":0},{"$f":"IF(AND(N23=\"ANUAL\",J23=\"MENSUAL\"),N17/12+D50,IF(AND(N23=\"ANUAL\",J23=\"TRIMESTRAL\"),N17/4+D50,IF(AND(N23=\"ANUAL\",J23=\"SEMESTRAL\"),N17/2+D50,IF(AND(N23=\"SEMESTRAL\",J23=\"MENSUAL\"),N17/6+D50,IF(AND(N23=\"SEMESTRAL\",J23=\"TRIMESTRAL\"),N17/2+D50,IF(AND(N23=\"SEMESTRAL\",J23=\"SEMESTRAL\"),N17,IF(AND(N23=\"TRIMESTRAL\",J23=\"MENSUAL\"),N17/3+D50,IF(AND(N23=\"TRIMESTRAL\",J23=\"TRIMESTRAL\"),N17,IF(AND(N23=\"MENSUAL\",J23=\"MENSUAL\"),N17,\"\")))))))))","v":0},{"$f":"IF(AND(N23=\"ANUAL\",J23=\"MENSUAL\"),N17/12+E50,IF(AND(N23=\"ANUAL\",J23=\"TRIMESTRAL\"),N17/4+E50,IF(AND(N23=\"SEMESTRAL\",J23=\"MENSUAL\"),N17/6+E50,IF(AND(N23=\"SEMESTRAL\",J23=\"TRIMESTRAL\"),N17/2,IF(AND(N23=\"TRIMESTRAL\",J23=\"MENSUAL\"),N17/3+E50,IF(AND(N23=\"TRIMESTRAL\",J23=\"TRIMESTRAL\"),N17,IF(AND(N23=\"MENSUAL\",J23=\"MENSUAL\"),N17,\"\")))))))","v":0},{"$f":"IF(AND(N23=\"ANUAL\",J23=\"MENSUAL\"),N17/12+F50,IF(AND(N23=\"ANUAL\",J23=\"TRIMESTRAL\"),N17/4+F50,IF(AND(N23=\"SEMESTRAL\",J23=\"MENSUAL\"),N17/6+F50,IF(AND(N23=\"SEMESTRAL\",J23=\"TRIMESTRAL\"),N17/2+F50,IF(AND(N23=\"TRIMESTRAL\",J23=\"MENSUAL\"),N17/3,IF(AND(N23=\"TRIMESTRAL\",J23=\"TRIMESTRAL\"),N17,IF(AND(N23=\"MENSUAL\",J23=\"MENSUAL\"),N17,\"\")))))))","v":0},{"$f":"IF(AND($N$23=\"ANUAL\",$J$23=\"MENSUAL\"),$N$17/12+G50,IF(AND(N23=\"SEMESTRAL\",J23=\"MENSUAL\"),N17/6+G50,IF(AND(N23=\"TRIMESTRAL\",J23=\"MENSUAL\"),N17/3+G50,IF(AND(N23=\"MENSUAL\",J23=\"MENSUAL\"),N17,\"\"))))","v":""},{"$f":"IF(AND($N$23=\"ANUAL\",$J$23=\"MENSUAL\"),$N$17/12+H50,IF(AND(N23=\"SEMESTRAL\",J23=\"MENSUAL\"),N17/6+H50,IF(AND(N23=\"TRIMESTRAL\",J23=\"MENSUAL\"),N17/3+H50,IF(AND(N23=\"MENSUAL\",J23=\"MENSUAL\"),N17,\"\"))))","v":""},{"$f":"IF(AND($N$23=\"ANUAL\",$J$23=\"MENSUAL\"),$N$17/12+I50,IF(AND(N23=\"SEMESTRAL\",J23=\"MENSUAL\"),N17/6,IF(AND(N23=\"TRIMESTRAL\",J23=\"MENSUAL\"),N17/3,IF(AND(N23=\"MENSUAL\",J23=\"MENSUAL\"),N17,\"\"))))","v":""},{"$f":"IF(AND($N$23=\"ANUAL\",$J$23=\"MENSUAL\"),$N$17/12+J50,IF(AND(N23=\"SEMESTRAL\",J23=\"MENSUAL\"),N17/6+J50,IF(AND(N23=\"TRIMESTRAL\",J23=\"MENSUAL\"),N17/3+J50,IF(AND(N23=\"MENSUAL\",J23=\"MENSUAL\"),N17,\"\"))))","v":""},{"$f":"IF(AND($N$23=\"ANUAL\",$J$23=\"MENSUAL\"),$N$17/12+K50,IF(AND(N23=\"SEMESTRAL\",J23=\"MENSUAL\"),N17/6+K50,IF(AND(N23=\"TRIMESTRAL\",J23=\"MENSUAL\"),N17/3+K50,IF(AND(N23=\"MENSUAL\",J23=\"MENSUAL\"),N17,\"\"))))","v":""},{"$f":"IF(AND($N$23=\"ANUAL\",$J$23=\"MENSUAL\"),$N$17/12+L50,IF(AND(N23=\"SEMESTRAL\",J23=\"MENSUAL\"),N17/6+L50,IF(AND(N23=\"TRIMESTRAL\",J23=\"MENSUAL\"),N17/3,IF(AND(N23=\"MENSUAL\",J23=\"MENSUAL\"),N17,\"\"))))","v":""},{"$f":"IF(AND($N$23=\"ANUAL\",$J$23=\"MENSUAL\"),$N$17/12+M50,IF(AND(N23=\"SEMESTRAL\",J23=\"MENSUAL\"),N17/6+M50,IF(AND(N23=\"TRIMESTRAL\",J23=\"MENSUAL\"),N17/3+M50,IF(AND(N23=\"MENSUAL\",J23=\"MENSUAL\"),N17,\"\"))))","v":""},{"$f":"IF(AND($N$23=\"ANUAL\",$J$23=\"MENSUAL\"),$N$17/12+N50,IF(AND(N23=\"SEMESTRAL\",J23=\"MENSUAL\"),N17/6+N50,IF(AND(N23=\"TRIMESTRAL\",J23=\"MENSUAL\"),N17/3+N50,IF(AND(N23=\"MENSUAL\",J23=\"MENSUAL\"),N17,\"\"))))","v":""}]
[]
[null,null,"NIVEL DE SEGREGACIÓN *"]
[null,null,"UNIDAD SEGREGADA (Ej. Facultad, Programa Académico, Área)",null,null,null,"RESULTADO",null,null,null,"ANALISIS DE DATOS SEGREGADO"]
[]
[]
[]
[]
[]
[]
[]
[]
[]
[]
[]
[]
[]
[]
[]
[]
[]
[]
[]
[null,null,null,null,null,null,"Estratégico",null,null,"Eficacia"]
[null,null,null,null,null,null,"Misional",null,null,"Eficiencia"]
[null,null,null,null,null,null,"Apoyo",null,null,"Acreditación"]
[null,null,null,null,null,null,"Seguimiento, Medición, Análisis y Evaluación",null,null,"Positiva"]
[null,null,null,null,null,null,"Direccionamiento Estratégico",null,null,"Negativa"]
[null,null,null,null,null,null,"Planeación Institucional",null,null,"Por Unidad Regional"]
[null,null,null,null,null,null,"Proyectos Especiales y Relaciones Interinstitucionales",null,null,"Por Facultad"]
[null,null,null,null,null,null,"Sistemas Integrados",null,null,"Por Programa Académico"]
[null,null,null,null,null,null,"Autoevaluación y Acreditación",null,null,"Por área"]
[null,null,null,null,null,null,"Comunicaciones",null,null,"Por Laboratorio"]
[null,null,null,null,null,null,"Formación y Aprendizaje",null,null,"Otros"]
[null,null,null,null,null,null,"Ciencia, Tecnología e Innovación",null,null,"No Aplica"]
[null,null,null,null,null,null,"Interacción Social Universitaria"]
[null,null,null,null,null,null,"Bienestar Universitario"]
[null,null,null,null,null,null,"Admisiones y Registro"]
[null,null,null,null,null,null,"Graduados"]
[null,null,null,null,null,null,"Dialogando con el Mundo"]
[null,null,null,null,null,null,"Talento Humano"]
[null,null,null,null,null,null,"Jurídica"]
[null,null,null,null,null,null,"Financiera"]
[null,null,null,null,null,null,"Sistemas y Tecnología"]
[null,null,null,null,null,null,"Bienes y Servicios"]
[null,null,null,null,null,null,"Documental"]
[null,null,null,null,null,null,"Apoyo Académico"]
[null,null,null,null,null,null,"Control Interno"]
[null,null,null,null,null,null,"Control Disciplinario"]
[null,null,null,null,null,null,"Servicio de Atención al Ciudadano"]

{"sheet":"----2","index":2,"n_rows":98,"n_cols":15,"rows_kept":98,"cut":false,"hidden":true,"merged":[[1,1,3,2],[4,2,7,3],[4,4,4,11],[15,2,15,14],[8,2,8,14],[9,2,10,14],[11,2,11,3],[11,4,11,7],[11,8,11,9],[11,10,11,14],[12,2,12,3],[12,4,12,14],[13,2,13,3],[13,4,13,14],[4,12,4,14],[5,4,5,11],[5,12,5,14],[6,4,7,11],[6,12,6,14],[7,12,7,14],[16,15,17,15],[16,13,16,14],[17,13,18,14],[18,4,18,5],[16,2,16,3],[16,11,16,12],[17,11,18,12],[17,6,17,10],[18,6,18,10],[16,9,16,10],[16,7,16,8],[16,4,16,6],[22,7,23,8],[14,2,14,14],[22,4,22,6],[23,4,23,6],[19,2,21,3],[19,7,21,8],[19,11,19,14],[19,9,21,10],[19,4,21,6],[22,13,23,14],[22,2,22,3],[23,2,23,3],[22,9,23,10],[22,11,23,12],[17,2,18,3],[17,4,17,5],[44,2,44,14],[25,2,25,14],[26,2,42,8],[26,9,26,14],[42,9,42,14],[41,9,41,14],[26,15,27,15],[27,9,32,14],[33,9,33,14],[34,9,39,14],[40,9,40,14],[51,2,51,14],[52,2,52,5],[52,6,52,9],[52,10,52,14],[53,2,53,5],[53,6,53,9],[53,10,53,14],[54,2,54,5],[54,6,54,9],[54,10,54,14],[55,2,55,5],[55,6,55,9],[55,10,55,14],[56,2,56,5],[56,6,56,9],[56,10,56,14],[57,2,57,5],[57,6,57,9],[57,10,57,14],[58,2,58,5],[58,6,58,9],[58,10,58,14],[59,2,59,5],[59,6,59,9],[59,10,59,14]]}
[]
[null,"      REGRESAR"]
[]
[]
[null,null,null,null,"MACROPROCESO ESTRATÉGICO",null,null,null,null,null,null,null,"CÓDIGO: ESGr027"]
[null,null,null,null,"PROCESO GESTIÓN SISTEMAS INTEGRADOS",null,null,null,null,null,null,null,"VERSIÓN: 7"]
[null,null,null,null,"MATRIZ DE MEDICIÓN Y SEGUIMIENTO A LOS PROCESOS DE GESTIÓN",null,null,null,null,null,null,null,"VIGENCIA: 2020-03-31"]
[null,null,null,null,null,null,null,null,null,null,null,null,"PÁGINA: 1 de 1"]
[]
[null,null,"FICHA DE INDICADOR"]
[]
[null,null,"MACROPROCESO",null,null,null,null,null,"NOMBRE DEL INDICADOR"]
[null,null,"PROCESO GESTIÓN"]
[null,null,"RESPONSABLE DE MEDICIÓN"]
[]
[null,null,"1. COMPORTAMIENTO DE INDICADOR"]
[null,null,"CLASIFICACIÓN DE LA MEDICIÓN",null,1,null,null,"TIPO DE INDICADOR",null,null,null,"META ANUAL"]
[null,null,"FORMULA",null,"NUMERADOR",null,null,null,null,null,null,"UNIDAD DE MEDIDA"]
[null,null,null,null,"DENOMINADOR"]
[null,null,"TENDENCIA",null,null,null,null,"NIVEL DE SEGREGACIÓN *",null,null,null,"ESCALA"]
[null,null,null,null,null,null,null,null,null,null,null,"Deficiente","Aceptable","Bueno","Excelente"]
[]
[null,null,"ORIGEN DE DATOS NUMERADOR",null,null,null,null,"FRECUENCIA DE LA MEDICIÓN",null,"TRIMESTRAL",null,"FRECUENCIA DE RESULTADO",null,"TRIMESTRAL"]
[null,null,"ORIGEN DE DATOS DENOMINADOR"]
[]
[null,null,"RESULTADOS"]
[null,null,null,null,null,null,null,null,null,"ANÁLISIS DE DATOS"]
[]
[]
[]
[]
[]
[]
[null,null,null,null,null,null,null,null,null,"ACCIÓN FORMULADA"]
[]
[]
[]
[]
[]
[]
[null,null,null,null,null,null,null,null,null,"RESPONSABLE "]
[null,null,null,null,null,null,null,null,null,{"$f":"E14","v":0}]
[]
[]
[null,null,"PERIODO DE EVALUACIÓN"]
[null,null,"MES",{"$f":"IF(J23=\"MENSUAL\",\"ENERO\",IF(J23=\"TRIMESTRAL\",\"MARZO\",IF(J23=\"SEMESTRAL\",\"JUNIO\",IF(J23=\"ANUAL\",YEAR(TODAY()),\"\"))))","v":"MARZO"},{"$f":"IF(J23=\"MENSUAL\",\"FEBRERO\",IF(J23=\"TRIMESTRAL\",\"JUNIO\",IF(J23=\"SEMESTRAL\",\"DICIEMBRE\",\"\")))","v":"JUNIO"},{"$f":"IF(J23=\"MENSUAL\",\"MARZO\",IF(J23=\"TRIMESTRAL\",\"SEPTIEMBRE\",\"\"))","v":"SEPTIEMBRE"},{"$f":"IF(J23=\"MENSUAL\",\"ABRIL\",IF(J23=\"TRIMESTRAL\",\"DICIEMBRE\",\"\"))","v":"DICIEMBRE"},{"$f":"IF(J23=\"MENSUAL\",\"MAYO\",\"\")","v":""},{"$f":"IF(J23=\"MENSUAL\",\"JUNIO\",\"\")","v":""},{"$f":"IF(J23=\"MENSUAL\",\"JULIO\",\"\")","v":""},{"$f":"IF(J23=\"MENSUAL\",\"AGOSTO\",\"\")","v":""},{"$f":"IF(J23=\"MENSUAL\",\"SEPTIEMBRE\",\"\")","v":""},{"$f":"IF(J23=\"MENSUAL\",\"OCTUBRE\",\"\")","v":""},{"$f":"IF(J23=\"MENSUAL\",\"NOVIEMBRE\",\"\")","v":""},{"$f":"IF(J23=\"MENSUAL\",\"DICIEMBRE\",\"\")","v":""}]
[null,null,{"$f":"G18","v":0}]
[null,null,{"$f":"G19","v":0}]
[null,null,"VALOR ",{"$f":"IFERROR(IF($E$17=1,D47/D48,IF($E$17=2,D47,\"\")),\"\")","v":""},{"$f":"IFERROR(IF($E$17=1,E47/E48,IF($E$17=2,E47,\"\")),\"\")","v":""},"","","","","","","","","",""]
[null,null,"META PONDERADA",{"$f":"IF(AND(N23=\"ANUAL\",J23=\"MENSUAL\"),N17/12,IF(AND(N23=\"ANUAL\",J23=\"TRIMESTRAL\"),N17/4,IF(AND(N23=\"ANUAL\",J23=\"SEMESTRAL\"),N17/2,IF(AND(N23=\"ANUAL\",J23=\"ANUAL\"),N17,IF(AND(N23=\"SEMESTRAL\",J23=\"MENSUAL\"),N17/6,IF(AND(N23=\"SEMESTRAL\",J23=\"TRIMESTRAL\"),N17/2,IF(AND(N23=\"SEMESTRAL\",J23=\"SEMESTRAL\"),N17,IF(AND(N23=\"SEMESTRAL\",J23=\"ANUAL\"),\"REVISAR FRECUENCIAS\",IF(AND(N23=\"TRIMESTRAL\",J23=\"MENSUAL\"),N17/3,IF(AND(N23=\"TRIMESTRAL\",J23=\"TRIMESTRAL\"),N17,IF(AND(N23=\"TRIMESTRAL\",J23=\"SEMESTRAL\"),\"REVISAR FRECUENCIAS\",IF(AND(N23=\"TRIMESTRAL\",J23=\"ANUAL\"),\"REVISAR FRECUENCIAS\",IF(AND(N23=\"MENSUAL\",J23=\"MENSUAL\"),N17,IF(AND(N23=\"MENSUAL\",J23=\"TRIMESTRAL\"),\"REVISAR FRECUENCIAS\",IF(AND(N23=\"MENSUAL\",J23=\"SEMESTRAL\"),\"REVISAR FRECUENCIAS\",IF(AND(N23=\"MENSUAL\",J23=\"ANUAL\"),\"REVISAR FRECUENCIAS\",\"\"))))))))))))))))","v":0},{"$f":"IF(AND(N23=\"ANUAL\",J23=\"MENSUAL\"),N17/12+D50,IF(AND(N23=\"ANUAL\",J23=\"TRIMESTRAL\"),N17/4+D50,IF(AND(N23=\"ANUAL\",J23=\"SEMESTRAL\"),N17/2+D50,IF(AND(N23=\"SEMESTRAL\",J23=\"MENSUAL\"),N17/6+D50,IF(AND(N23=\"SEMESTRAL\",J23=\"TRIMESTRAL\"),N17/2+D50,IF(AND(N23=\"SEMESTRAL\",J23=\"SEMESTRAL\"),N17,IF(AND(N23=\"TRIMESTRAL\",J23=\"MENSUAL\"),N17/3+D50,IF(AND(N23=\"TRIMESTRAL\",J23=\"TRIMESTRAL\"),N17,IF(AND(N23=\"MENSUAL\",J23=\"MENSUAL\"),N17,\"\")))))))))","v":0},{"$f":"IF(AND(N23=\"ANUAL\",J23=\"MENSUAL\"),N17/12+E50,IF(AND(N23=\"ANUAL\",J23=\"TRIMESTRAL\"),N17/4+E50,IF(AND(N23=\"SEMESTRAL\",J23=\"MENSUAL\"),N17/6+E50,IF(AND(N23=\"SEMESTRAL\",J23=\"TRIMESTRAL\"),N17/2,IF(AND(N23=\"TRIMESTRAL\",J23=\"MENSUAL\"),N17/3+E50,IF(AND(N23=\"TRIMESTRAL\",J23=\"TRIMESTRAL\"),N17,IF(AND(N23=\"MENSUAL\",J23=\"MENSUAL\"),N17,\"\")))))))","v":0},{"$f":"IF(AND(N23=\"ANUAL\",J23=\"MENSUAL\"),N17/12+F50,IF(AND(N23=\"ANUAL\",J23=\"TRIMESTRAL\"),N17/4+F50,IF(AND(N23=\"SEMESTRAL\",J23=\"MENSUAL\"),N17/6+F50,IF(AND(N23=\"SEMESTRAL\",J23=\"TRIMESTRAL\"),N17/2+F50,IF(AND(N23=\"TRIMESTRAL\",J23=\"MENSUAL\"),N17/3,IF(AND(N23=\"TRIMESTRAL\",J23=\"TRIMESTRAL\"),N17,IF(AND(N23=\"MENSUAL\",J23=\"MENSUAL\"),N17,\"\")))))))","v":0},{"$f":"IF(AND($N$23=\"ANUAL\",$J$23=\"MENSUAL\"),$N$17/12+G50,IF(AND(N23=\"SEMESTRAL\",J23=\"MENSUAL\"),N17/6+G50,IF(AND(N23=\"TRIMESTRAL\",J23=\"MENSUAL\"),N17/3+G50,IF(AND(N23=\"MENSUAL\",J23=\"MENSUAL\"),N17,\"\"))))","v":""},{"$f":"IF(AND($N$23=\"ANUAL\",$J$23=\"MENSUAL\"),$N$17/12+H50,IF(AND(N23=\"SEMESTRAL\",J23=\"MENSUAL\"),N17/6+H50,IF(AND(N23=\"TRIMESTRAL\",J23=\"MENSUAL\"),N17/3+H50,IF(AND(N23=\"MENSUAL\",J23=\"MENSUAL\"),N17,\"\"))))","v":""},{"$f":"IF(AND($N$23=\"ANUAL\",$J$23=\"MENSUAL\"),$N$17/12+I50,IF(AND(N23=\"SEMESTRAL\",J23=\"MENSUAL\"),N17/6,IF(AND(N23=\"TRIMESTRAL\",J23=\"MENSUAL\"),N17/3,IF(AND(N23=\"MENSUAL\",J23=\"MENSUAL\"),N17,\"\"))))","v":""},{"$f":"IF(AND($N$23=\"ANUAL\",$J$23=\"MENSUAL\"),$N$17/12+J50,IF(AND(N23=\"SEMESTRAL\",J23=\"MENSUAL\"),N17/6+J50,IF(AND(N23=\"TRIMESTRAL\",J23=\"MENSUAL\"),N17/3+J50,IF(AND(N23=\"MENSUAL\",J23=\"MENSUAL\"),N17,\"\"))))","v":""},{"$f":"IF(AND($N$23=\"ANUAL\",$J$23=\"MENSUAL\"),$N$17/12+K50,IF(AND(N23=\"SEMESTRAL\",J23=\"MENSUAL\"),N17/6+K50,IF(AND(N23=\"TRIMESTRAL\",J23=\"MENSUAL\"),N17/3+K50,IF(AND(N23=\"MENSUAL\",J23=\"MENSUAL\"),N17,\"\"))))","v":""},{"$f":"IF(AND($N$23=\"ANUAL\",$J$23=\"MENSUAL\"),$N$17/12+L50,IF(AND(N23=\"SEMESTRAL\",J23=\"MENSUAL\"),N17/6+L50,IF(AND(N23=\"TRIMESTRAL\",J23=\"MENSUAL\"),N17/3,IF(AND(N23=\"MENSUAL\",J23=\"MENSUAL\"),N17,\"\"))))","v":""},{"$f":"IF(AND($N$23=\"ANUAL\",$J$23=\"MENSUAL\"),$N$17/12+M50,IF(AND(N23=\"SEMESTRAL\",J23=\"MENSUAL\"),N17/6+M50,IF(AND(N23=\"TRIMESTRAL\",J23=\"MENSUAL\"),N17/3+M50,IF(AND(N23=\"MENSUAL\",J23=\"MENSUAL\"),N17,\"\"))))","v":""},{"$f":"IF(AND($N$23=\"ANUAL\",$J$23=\"MENSUAL\"),$N$17/12+N50,IF(AND(N23=\"SEMESTRAL\",J23=\"MENSUAL\"),N17/6+N50,IF(AND(N23=\"TRIMESTRAL\",J23=\"MENSUAL\"),N17/3+N50,IF(AND(N23=\"MENSUAL\",J23=\"MENSUAL\"),N17,\"\"))))","v":""}]
[]
[null,null,"NIVEL DE SEGREGACIÓN *"]
[null,null,"UNIDAD SEGREGADA (Ej. Facultad, Programa Académico, Área)",null,null,null,"RESULTADO",null,null,null,"ANALISIS DE DATOS SEGREGADO"]
[]
[]
[]
[]
[]
[]
[]
[]
[]
[]
[]
[]
[]
[]
[]
[]
[]
[]
[null,null,null,null,null,null,"Estratégico",null,null,"Eficacia"]
[null,null,null,null,null,null,"Misional",null,null,"Eficiencia"]
[null,null,null,null,null,null,"Apoyo",null,null,"Acreditación"]
[null,null,null,null,null,null,"Seguimiento, Medición, Análisis y Evaluación",null,null,"Positiva"]
[null,null,null,null,null,null,"Direccionamiento Estratégico",null,null,"Negativa"]
[null,null,null,null,null,null,"Planeación Institucional",null,null,"Por Unidad Regional"]
[null,null,null,null,null,null,"Proyectos Especiales y Relaciones Interinstitucionales",null,null,"Por Facultad"]
[null,null,null,null,null,null,"Sistemas Integrados",null,null,"Por Programa Académico"]
[null,null,null,null,null,null,"Autoevaluación y Acreditación",null,null,"Por área"]
[null,null,null,null,null,null,"Comunicaciones",null,null,"Por Laboratorio"]
[null,null,null,null,null,null,"Formación y Aprendizaje",null,null,"Otros"]
[null,null,null,null,null,null,"Ciencia, Tecnología e Innovación",null,null,"No Aplica"]
[null,null,null,null,null,null,"Interacción Social Universitaria"]
[null,null,null,null,null,null,"Bienestar Universitario"]
[null,null,null,null,null,null,"Admisiones y Registro"]
[null,null,null,null,null,null,"Graduados"]
[null,null,null,null,null,null,"Dialogando con el Mundo"]
[null,null,null,null,null,null,"Talento Humano"]
[null,null,null,null,null,null,"Jurídica"]
[null,null,null,null,null,null,"Financiera"]
[null,null,null,null,null,null,"Sistemas y Tecnología"]
[null,null,null,null,null,null,"Bienes y Servicios"]
[null,null,null,null,null,null,"Documental"]
[null,null,null,null,null,null,"Apoyo Académico"]
[null,null,null,null,null,null,"Control Interno"]
[null,null,null,null,null,null,"Control Disciplinario"]
[null,null,null,null,null,null,"Servicio de Atención al Ciudadano"]

{"sheet":"MIU-1","index":3,"n_rows":95,"n_cols":15,"rows_kept":95,"cut":false,"hidden":false,"merged":[[1,1,3,2],[4,2,7,3],[4,4,4,11],[4,12,4,14],[5,4,5,11],[5,12,5,14],[6,4,7,11],[6,12,6,14],[7,12,7,14],[15,2,15,14],[8,2,8,14],[9,2,10,14],[11,2,11,3],[11,4,11,7],[11,8,11,9],[11,10,11,14],[12,2,12,3],[12,4,12,14],[13,2,13,3],[13,4,13,14],[14,2,14,14],[16,15,17,15],[17,2,18,3],[17,4,17,5],[17,6,17,10],[17,11,18,12],[17,13,18,14],[18,4,18,5],[18,6,18,10],[16,2,16,3],[16,4,16,6],[16,7,16,8],[16,9,16,10],[16,11,16,12],[16,13,16,14],[19,2,21,3],[19,4,21,6],[19,7,21,8],[19,9,21,10],[19,11,19,14],[22,13,23,14],[23,2,23,3],[23,4,23,6],[25,2,25,14],[26,2,40,8],[26,9,26,14],[40,9,40,14],[22,2,22,3],[22,4,22,6],[22,7,23,8],[22,9,23,10],[22,11,23,12],[51,2,51,5],[51,6,51,9],[51,10,51,14],[26,15,27,15],[27,9,32,14],[33,9,33,14],[34,9,37,14],[38,9,38,14],[39,9,39,14],[42,2,42,14],[49,2,49,14],[50,2,50,5],[50,6,50,9],[50,10,50,14],[52,2,52,5],[52,6,52,9],[52,10,52,14],[53,2,53,5],[53,6,53,9],[53,10,53,14],[54,2,54,5],[54,6,54,9],[54,10,54,14],[55,2,55,5],[55,6,55,9],[55,10,55,14],[56,2,56,5],[56,6,56,9],[56,10,56,14],[57,2,57,5],[57,6,57,9],[57,10,57,14]]}
[]
[null,"      REGRESAR"]
[]
[]
[null,null,null,null,"MACROPROCESO ESTRATÉGICO",null,null,null,null,null,null,null,"CÓDIGO: ESGr027"]
[null,null,null,null,"PROCESO GESTIÓN SISTEMAS INTEGRADOS - CALIDAD",null,null,null,null,null,null,null,"VERSIÓN: 8"]
[null,null,null,null,"MATRIZ DE MEDICIÓN Y SEGUIMIENTO A LOS PROCESOS DE GESTIÓN",null,null,null,null,null,null,null,"VIGENCIA: 2023-07-28"]
[null,null,null,null,null,null,null,null,null,null,null,null,"PÁGINA: 2 de 7"]
[]
[null,null,"FICHA DE INDICADOR"]
[]
[null,null,"MACROPROCESO",null,"Misional",null,null,null,"NOMBRE DEL INDICADOR",null,"Satisfacción del usuario del servicio de la Educación Continuada"]
[null,null,"PROCESO GESTIÓN",null,"Interacción Social Universitaria"]
[null,null,"RESPONSABLE DE MEDICIÓN",null,"Dirección de Interacción Universitaria"]
[]
[null,null,"1. COMPORTAMIENTO DE INDICADOR"]
[null,null,"CLASIFICACIÓN DE LA MEDICIÓN",null,1,null,null,"TIPO DE INDICADOR",null,"Eficacia",null,"META ANUAL",null,0.9]
[null,null,"FORMULA",null,"NUMERADOR",null,"(# Evaluaciones Calificadas ≥ 4) * 100",null,null,null,null,"UNIDAD DE MEDIDA",null,"Porcentual"]
[null,null,null,null,"DENOMINADOR",null,"# Total Evaluaciones"]
[null,null,"TENDENCIA",null,"Positiva",null,null,"NIVEL DE SEGREGACIÓN *",null,"No Aplica",null,"ESCALA"]
[null,null,null,null,null,null,null,null,null,null,null,"Deficiente","Aceptable","Bueno","Excelente"]
[null,null,null,null,null,null,null,null,null,null,null,"0 - 59,9%","60% - 80,9%","81% - 89,9%",">/=90%"]
[null,null,"ORIGEN DE DATOS NUMERADOR",null,"MIUr015 de los eventos realizados en el semestre",null,null,"FRECUENCIA DE LA MEDICIÓN",null,"SEMESTRAL",null,"FRECUENCIA DE RESULTADO",null,"SEMESTRAL"]
[null,null,"ORIGEN DE DATOS DENOMINADOR",null,"Total MIUr015 recibidos"]
[]
[null,null,"RESULTADOS"]
[null,null,null,null,null,null,null,null,null,"ANÁLISIS DE DATOS"]
[null,null,null,null,null,null,null,null,null,"PRIMER SEMESTRE 2024.1: Realizado el análisis de las 91 evaluaciones en las diferentes actividades llevadas a cabo durante el primer periodo académico 2024, se evidencia que las acciones formativas tales como cursos, diplomados, congresos y seminarios realizados contaron con la satisfacción de   los participantes de los servicios de educación continuada, teniendo en cuenta que el total  de evaluaciones (91),   obtuvierón una calificación igual o mayor a 4,  por ende se cumple el indicador  superando la meta establecida. \n\nSEGUNDO SEMESTRE 2024.2:  Revisando  las 142 evaluaciones,   con concepto bueno y excelente sobre calificación 4 a 5, se evidencia que las acciones formativas tales como cursos, diplomados, congresos y seminarios realizados contaron con la satisfacción de   los participantes de los servicios de educación continuada, teniendo en cuenta que el total  de evaluaciones (142),   obtuvierón una calificación igual o mayor a 4,  por ende se cumple el indicador  superando la meta establecida,  logrando el 95% de las preguntas con calificación  (4) Buena,  lograron 336 y con  calificación (5) Excelente,   lograron 1.269 preguntas, para  una sumatoria de 1.632 y solo 7 encuestas contaron con una regular  regular. "]
[]
[]
[]
[]
[]
[null,null,null,null,null,null,null,null,null,"ACCIÓN FORMULADA"]
[null,null,null,null,null,null,null,null,null,"N/A"]
[]
[]
[]
[null,null,null,null,null,null,null,null,null,"RESPONSABLE "]
[null,null,null,null,null,null,null,null,null,{"$f":"E14","v":"Dirección de Interacción Universitaria"}]
[]
[]
[null,null,"PERIODO DE EVALUACIÓN"]
[null,null,"MES",{"$f":"IF(J23=\"MENSUAL\",\"ENERO\",IF(J23=\"TRIMESTRAL\",\"MARZO\",IF(J23=\"SEMESTRAL\",\"JUNIO\",IF(J23=\"ANUAL\",YEAR(TODAY()),\"\"))))","v":"JUNIO"},{"$f":"IF(J23=\"MENSUAL\",\"FEBRERO\",IF(J23=\"TRIMESTRAL\",\"JUNIO\",IF(J23=\"SEMESTRAL\",\"DICIEMBRE\",\"\")))","v":"DICIEMBRE"},{"$f":"IF(J23=\"MENSUAL\",\"MARZO\",IF(J23=\"TRIMESTRAL\",\"SEPTIEMBRE\",\"\"))","v":""},{"$f":"IF(J23=\"MENSUAL\",\"ABRIL\",IF(J23=\"TRIMESTRAL\",\"DICIEMBRE\",\"\"))","v":""},{"$f":"IF(J23=\"MENSUAL\",\"MAYO\",\"\")","v":""},{"$f":"IF(J23=\"MENSUAL\",\"JUNIO\",\"\")","v":""},{"$f":"IF(J23=\"MENSUAL\",\"JULIO\",\"\")","v":""},{"$f":"IF(J23=\"MENSUAL\",\"AGOSTO\",\"\")","v":""},{"$f":"IF(J23=\"MENSUAL\",\"SEPTIEMBRE\",\"\")","v":""},{"$f":"IF(J23=\"MENSUAL\",\"OCTUBRE\",\"\")","v":""},{"$f":"IF(J23=\"MENSUAL\",\"NOVIEMBRE\",\"\")","v":""},{"$f":"IF(J23=\"MENSUAL\",\"DICIEMBRE\",\"\")","v":""}]
[null,null,{"$f":"G18","v":"(# Evaluaciones Calificadas ≥ 4) * 100"},91,135]
[null,null,{"$f":"G19","v":"# Total Evaluaciones"},91,142]
[null,null,"VALOR ",{"$f":"IFERROR(IF($E$17=1,D45/D46,IF($E$17=2,D45,\"\")),\"\")","v":1},{"$f":"IFERROR(IF($E$17=1,E45/E46,IF($E$17=2,E45,\"\")),\"\")","v":0.95070422535211263},null,"","","","","","","","",""]
[null,null,"META PONDERADA",{"$f":"IF(AND(N23=\"ANUAL\",J23=\"MENSUAL\"),N17/12,IF(AND(N23=\"ANUAL\",J23=\"TRIMESTRAL\"),N17/4,IF(AND(N23=\"ANUAL\",J23=\"SEMESTRAL\"),N17/2,IF(AND(N23=\"ANUAL\",J23=\"ANUAL\"),N17,IF(AND(N23=\"SEMESTRAL\",J23=\"MENSUAL\"),N17/6,IF(AND(N23=\"SEMESTRAL\",J23=\"TRIMESTRAL\"),N17/2,IF(AND(N23=\"SEMESTRAL\",J23=\"SEMESTRAL\"),N17,IF(AND(N23=\"SEMESTRAL\",J23=\"ANUAL\"),\"REVISAR FRECUENCIAS\",IF(AND(N23=\"TRIMESTRAL\",J23=\"MENSUAL\"),N17/3,IF(AND(N23=\"TRIMESTRAL\",J23=\"TRIMESTRAL\"),N17,IF(AND(N23=\"TRIMESTRAL\",J23=\"SEMESTRAL\"),\"REVISAR FRECUENCIAS\",IF(AND(N23=\"TRIMESTRAL\",J23=\"ANUAL\"),\"REVISAR FRECUENCIAS\",IF(AND(N23=\"MENSUAL\",J23=\"MENSUAL\"),N17,IF(AND(N23=\"MENSUAL\",J23=\"TRIMESTRAL\"),\"REVISAR FRECUENCIAS\",IF(AND(N23=\"MENSUAL\",J23=\"SEMESTRAL\"),\"REVISAR FRECUENCIAS\",IF(AND(N23=\"MENSUAL\",J23=\"ANUAL\"),\"REVISAR FRECUENCIAS\",\"\"))))))))))))))))","v":0.9},{"$f":"IF(AND(N23=\"ANUAL\",J23=\"MENSUAL\"),N17/12+D48,IF(AND(N23=\"ANUAL\",J23=\"TRIMESTRAL\"),N17/4+D48,IF(AND(N23=\"ANUAL\",J23=\"SEMESTRAL\"),N17/2+D48,IF(AND(N23=\"SEMESTRAL\",J23=\"MENSUAL\"),N17/6+D48,IF(AND(N23=\"SEMESTRAL\",J23=\"TRIMESTRAL\"),N17/2+D48,IF(AND(N23=\"SEMESTRAL\",J23=\"SEMESTRAL\"),N17,IF(AND(N23=\"TRIMESTRAL\",J23=\"MENSUAL\"),N17/3+D48,IF(AND(N23=\"TRIMESTRAL\",J23=\"TRIMESTRAL\"),N17,IF(AND(N23=\"MENSUAL\",J23=\"MENSUAL\"),N17,\"\")))))))))","v":0.9},{"$f":"IF(AND(N23=\"ANUAL\",J23=\"MENSUAL\"),N17/12+E48,IF(AND(N23=\"ANUAL\",J23=\"TRIMESTRAL\"),N17/4+E48,IF(AND(N23=\"SEMESTRAL\",J23=\"MENSUAL\"),N17/6+E48,IF(AND(N23=\"SEMESTRAL\",J23=\"TRIMESTRAL\"),N17/2,IF(AND(N23=\"TRIMESTRAL\",J23=\"MENSUAL\"),N17/3+E48,IF(AND(N23=\"TRIMESTRAL\",J23=\"TRIMESTRAL\"),N17,IF(AND(N23=\"MENSUAL\",J23=\"MENSUAL\"),N17,\"\")))))))","v":""},{"$f":"IF(AND(N23=\"ANUAL\",J23=\"MENSUAL\"),N17/12+F48,IF(AND(N23=\"ANUAL\",J23=\"TRIMESTRAL\"),N17/4+F48,IF(AND(N23=\"SEMESTRAL\",J23=\"MENSUAL\"),N17/6+F48,IF(AND(N23=\"SEMESTRAL\",J23=\"TRIMESTRAL\"),N17/2+F48,IF(AND(N23=\"TRIMESTRAL\",J23=\"MENSUAL\"),N17/3,IF(AND(N23=\"TRIMESTRAL\",J23=\"TRIMESTRAL\"),N17,IF(AND(N23=\"MENSUAL\",J23=\"MENSUAL\"),N17,\"\")))))))","v":""},{"$f":"IF(AND($N$23=\"ANUAL\",$J$23=\"MENSUAL\"),$N$17/12+G48,IF(AND(N23=\"SEMESTRAL\",J23=\"MENSUAL\"),N17/6+G48,IF(AND(N23=\"TRIMESTRAL\",J23=\"MENSUAL\"),N17/3+G48,IF(AND(N23=\"MENSUAL\",J23=\"MENSUAL\"),N17,\"\"))))","v":""},{"$f":"IF(AND($N$23=\"ANUAL\",$J$23=\"MENSUAL\"),$N$17/12+H48,IF(AND(N23=\"SEMESTRAL\",J23=\"MENSUAL\"),N17/6+H48,IF(AND(N23=\"TRIMESTRAL\",J23=\"MENSUAL\"),N17/3+H48,IF(AND(N23=\"MENSUAL\",J23=\"MENSUAL\"),N17,\"\"))))","v":""},{"$f":"IF(AND($N$23=\"ANUAL\",$J$23=\"MENSUAL\"),$N$17/12+I48,IF(AND(N23=\"SEMESTRAL\",J23=\"MENSUAL\"),N17/6,IF(AND(N23=\"TRIMESTRAL\",J23=\"MENSUAL\"),N17/3,IF(AND(N23=\"MENSUAL\",J23=\"MENSUAL\"),N17,\"\"))))","v":""},{"$f":"IF(AND($N$23=\"ANUAL\",$J$23=\"MENSUAL\"),$N$17/12+J48,IF(AND(N23=\"SEMESTRAL\",J23=\"MENSUAL\"),N17/6+J48,IF(AND(N23=\"TRIMESTRAL\",J23=\"MENSUAL\"),N17/3+J48,IF(AND(N23=\"MENSUAL\",J23=\"MENSUAL\"),N17,\"\"))))","v":""},{"$f":"IF(AND($N$23=\"ANUAL\",$J$23=\"MENSUAL\"),$N$17/12+K48,IF(AND(N23=\"SEMESTRAL\",J23=\"MENSUAL\"),N17/6+K48,IF(AND(N23=\"TRIMESTRAL\",J23=\"MENSUAL\"),N17/3+K48,IF(AND(N23=\"MENSUAL\",J23=\"MENSUAL\"),N17,\"\"))))","v":""},{"$f":"IF(AND($N$23=\"ANUAL\",$J$23=\"MENSUAL\"),$N$17/12+L48,IF(AND(N23=\"SEMESTRAL\",J23=\"MENSUAL\"),N17/6+L48,IF(AND(N23=\"TRIMESTRAL\",J23=\"MENSUAL\"),N17/3,IF(AND(N23=\"MENSUAL\",J23=\"MENSUAL\"),N17,\"\"))))","v":""},{"$f":"IF(AND($N$23=\"ANUAL\",$J$23=\"MENSUAL\"),$N$17/12+M48,IF(AND(N23=\"SEMESTRAL\",J23=\"MENSUAL\"),N17/6+M48,IF(AND(N23=\"TRIMESTRAL\",J23=\"MENSUAL\"),N17/3+M48,IF(AND(N23=\"MENSUAL\",J23=\"MENSUAL\"),N17,\"\"))))","v":""},{"$f":"IF(AND($N$23=\"ANUAL\",$J$23=\"MENSUAL\"),$N$17/12+N48,IF(AND(N23=\"SEMESTRAL\",J23=\"MENSUAL\"),N17/6+N48,IF(AND(N23=\"TRIMESTRAL\",J23=\"MENSUAL\"),N17/3+N48,IF(AND(N23=\"MENSUAL\",J23=\"MENSUAL\"),N17,\"\"))))","v":""}]
[]
[null,null,"NIVEL DE SEGREGACIÓN *"]
[null,null,"UNIDAD SEGREGADA (Ej. Facultad, Programa Académico, Área)",null,null,null,"RESULTADO",null,null,null,"ANÁLISIS DE DATOS SEGREGADO"]
[]
[]
[]
[]
[]
[]
[]
[]
[]
[]
[]
[]
[]
[]
[]
[]
[]
[null,null,null,null,null,null,"Estratégico",null,null,"Eficacia"]
[null,null,null,null,null,null,"Misional",null,null,"Eficiencia"]
[null,null,null,null,null,null,"Apoyo",null,null,"Acreditación"]
[null,null,null,null,null,null,"Seguimiento, Medición, Análisis y Evaluación",null,null,"Positiva"]
[null,null,null,null,null,null,"Direccionamiento Estratégico",null,null,"Negativa"]
[null,null,null,null,null,null,"Planeación Institucional",null,null,"Por Unidad Regional"]
[null,null,null,null,null,null,"Proyectos Especiales y Relaciones Interinstitucionales",null,null,"Por Facultad"]
[null,null,null,null,null,null,"Sistemas Integrados",null,null,"Por Programa Académico"]
[null,null,null,null,null,null,"Autoevaluación y Acreditación",null,null,"Por área"]
[null,null,null,null,null,null,"Comunicaciones",null,null,"Por Laboratorio"]
[null,null,null,null,null,null,"Formación y Aprendizaje",null,null,"Otros"]
[null,null,null,null,null,null,"Ciencia, Tecnología e Innovación",null,null,"No Aplica"]
[null,null,null,null,null,null,"Interacción Social Universitaria"]
[null,null,null,null,null,null,"Bienestar Universitario"]
[null,null,null,null,null,null,"Admisiones y Registro"]
[null,null,null,null,null,null,"Graduados"]
[null,null,null,null,null,null,"Dialogando con el Mundo"]
[null,null,null,null,null,null,"Talento Humano"]
[null,null,null,null,null,null,"Jurídica"]
[null,null,null,null,null,null,"Financiera"]
[null,null,null,null,null,null,"Sistemas y Tecnología"]
[null,null,null,null,null,null,"Bienes y Servicios"]
[null,null,null,null,null,null,"Documental"]
[null,null,null,null,null,null,"Apoyo Académico"]
[null,null,null,null,null,null,"Control Interno"]
[null,null,null,null,null,null,"Control Disciplinario"]
[null,null,null,null,null,null,"Servicio de Atención al Ciudadano"]

{"sheet":"MIU-2","index":4,"n_rows":96,"n_cols":15,"rows_kept":96,"cut":false,"hidden":true,"merged":[[1,1,3,2],[4,2,7,3],[4,4,4,11],[4,12,4,14],[5,4,5,11],[5,12,5,14],[6,4,7,11],[6,12,6,14],[7,12,7,14],[15,2,15,14],[8,2,8,14],[9,2,10,14],[11,2,11,3],[11,4,11,7],[11,8,11,9],[11,10,11,14],[12,2,12,3],[12,4,12,14],[13,2,13,3],[13,4,13,14],[14,2,14,14],[16,15,17,15],[17,2,18,3],[17,4,17,5],[17,6,17,10],[17,11,18,12],[17,13,18,14],[18,4,18,5],[18,6,18,10],[16,2,16,3],[16,4,16,6],[16,7,16,8],[16,9,16,10],[16,11,16,12],[16,13,16,14],[19,2,21,3],[19,4,21,6],[19,7,21,8],[19,9,21,10],[19,11,19,14],[22,13,23,14],[23,2,23,3],[23,4,23,6],[25,2,25,14],[26,2,42,8],[26,9,26,14],[42,9,42,14],[22,2,22,3],[22,4,22,6],[22,7,23,8],[22,9,23,10],[22,11,23,12],[53,2,53,5],[53,6,53,9],[53,10,53,14],[26,15,27,15],[34,9,34,14],[35,9,39,14],[40,9,40,14],[41,9,41,14],[44,2,44,14],[51,2,51,14],[52,2,52,5],[52,6,52,9],[52,10,52,14],[27,9,33,14],[54,2,54,5],[54,6,54,9],[54,10,54,14],[55,2,55,5],[55,6,55,9],[55,10,55,14],[58,2,58,5],[58,6,58,9],[58,10,58,14],[56,2,56,5],[56,6,56,9],[56,10,56,14],[57,2,57,5],[57,6,57,9],[57,10,57,14]]}
[]
[null,"      REGRESAR"]
[]
[]
[null,null,null,null,"MACROPROCESO ESTRATÉGICO",null,null,null,null,null,null,null,"CÓDIGO: ESGr027"]
[null,null,null,null,"PROCESO GESTIÓN SISTEMAS INTEGRADOS - CALIDAD",null,null,null,null,null,null,null,"VERSIÓN: 8"]
[null,null,null,null,"MATRIZ DE MEDICIÓN Y SEGUIMIENTO A LOS PROCESOS DE GESTIÓN",null,null,null,null,null,null,null,"VIGENCIA: 2023-07-28"]
[null,null,null,null,null,null,null,null,null,null,null,null,"PÁGINA: 3 de 7"]
[]
[null,null,"FICHA DE INDICADOR"]
[]
[null,null,"MACROPROCESO",null,"Misional",null,null,null,"NOMBRE DEL INDICADOR",null,"Satisfacción del estudiante frente al escenario de práctica o pasantía (PENDIENTE RESPONSABLE DE MEDICIÓN)"]
[null,null,"PROCESO GESTIÓN",null,"Interacción Social Universitaria"]
[null,null,"RESPONSABLE DE MEDICIÓN",null,"Dirección de Interacción Universitaria"]
[]
[null,null,"1. COMPORTAMIENTO DE INDICADOR"]
[null,null,"CLASIFICACIÓN DE LA MEDICIÓN",null,1,null,null,"TIPO DE INDICADOR",null,"Eficacia",null,"META ANUAL",null,0.85]
[null,null,"FORMULA",null,"NUMERADOR",null,"(# Evaluaciones Calificadas ≥ 4) * 100",null,null,null,null,"UNIDAD DE MEDIDA",null,"Porcentual"]
[null,null,null,null,"DENOMINADOR",null,"# Total Evaluaciones"]
[null,null,"TENDENCIA",null,"Positiva",null,null,"NIVEL DE SEGREGACIÓN *",null,"No Aplica",null,"ESCALA"]
[null,null,null,null,null,null,null,null,null,null,null,"Deficiente","Aceptable","Bueno","Excelente"]
[null,null,null,null,null,null,null,null,null,null,null,"0 - 59,9%","60% - 74,9%","75% - 84,9%","85% - 100%"]
[null,null,"ORIGEN DE DATOS NUMERADOR",null,"MIUr065 cuyas calificaciones sean superiores a 4",null,null,"FRECUENCIA DE LA MEDICIÓN",null,"SEMESTRAL",null,"FRECUENCIA DE RESULTADO",null,"SEMESTRAL"]
[null,null,"ORIGEN DE DATOS DENOMINADOR",null,"Total MIUr065 recibidos"]
[]
[null,null,"RESULTADOS"]
[null,null,null,null,null,null,null,null,null,"ANÁLISIS DE DATOS"]
[null,null,null,null,null,null,null,null,null,"PRIMER SEMESTRE:                                               \nSEGUNDO SEMESTRE: "]
[]
[]
[]
[]
[]
[]
[null,null,null,null,null,null,null,null,null,"ACCIÓN FORMULADA"]
[null,null,null,null,null,null,null,null,null,"PRIMER SEMESTRE:       \nSEGUNDO SEMESTRE: "]
[]
[]
[]
[]
[null,null,null,null,null,null,null,null,null,"RESPONSABLE "]
[null,null,null,null,null,null,null,null,null,{"$f":"E14","v":"Dirección de Interacción Universitaria"}]
[]
[]
[null,null,"PERIODO DE EVALUACIÓN"]
[null,null,"MES",{"$f":"IF(J23=\"MENSUAL\",\"ENERO\",IF(J23=\"TRIMESTRAL\",\"MARZO\",IF(J23=\"SEMESTRAL\",\"JUNIO\",IF(J23=\"ANUAL\",YEAR(TODAY()),\"\"))))","v":"JUNIO"},{"$f":"IF(J23=\"MENSUAL\",\"FEBRERO\",IF(J23=\"TRIMESTRAL\",\"JUNIO\",IF(J23=\"SEMESTRAL\",\"DICIEMBRE\",\"\")))","v":"DICIEMBRE"},{"$f":"IF(J23=\"MENSUAL\",\"MARZO\",IF(J23=\"TRIMESTRAL\",\"SEPTIEMBRE\",\"\"))","v":""},{"$f":"IF(J23=\"MENSUAL\",\"ABRIL\",IF(J23=\"TRIMESTRAL\",\"DICIEMBRE\",\"\"))","v":""},{"$f":"IF(J23=\"MENSUAL\",\"MAYO\",\"\")","v":""},{"$f":"IF(J23=\"MENSUAL\",\"JUNIO\",\"\")","v":""},{"$f":"IF(J23=\"MENSUAL\",\"JULIO\",\"\")","v":""},{"$f":"IF(J23=\"MENSUAL\",\"AGOSTO\",\"\")","v":""},{"$f":"IF(J23=\"MENSUAL\",\"SEPTIEMBRE\",\"\")","v":""},{"$f":"IF(J23=\"MENSUAL\",\"OCTUBRE\",\"\")","v":""},{"$f":"IF(J23=\"MENSUAL\",\"NOVIEMBRE\",\"\")","v":""},{"$f":"IF(J23=\"MENSUAL\",\"DICIEMBRE\",\"\")","v":""}]
[null,null,{"$f":"G18","v":"(# Evaluaciones Calificadas ≥ 4) * 100"}]
[null,null,{"$f":"G19","v":"# Total Evaluaciones"}]
[null,null,"VALOR ",{"$f":"IFERROR(IF($E$17=1,D47/D48,IF($E$17=2,D47,\"\")),\"\")","v":""},{"$f":"IFERROR(IF($E$17=1,E47/E48,IF($E$17=2,E47,\"\")),\"\")","v":""},null,"","","","","","","","",""]
[null,null,"META PONDERADA",{"$f":"IF(AND(N23=\"ANUAL\",J23=\"MENSUAL\"),N17/12,IF(AND(N23=\"ANUAL\",J23=\"TRIMESTRAL\"),N17/4,IF(AND(N23=\"ANUAL\",J23=\"SEMESTRAL\"),N17/2,IF(AND(N23=\"ANUAL\",J23=\"ANUAL\"),N17,IF(AND(N23=\"SEMESTRAL\",J23=\"MENSUAL\"),N17/6,IF(AND(N23=\"SEMESTRAL\",J23=\"TRIMESTRAL\"),N17/2,IF(AND(N23=\"SEMESTRAL\",J23=\"SEMESTRAL\"),N17,IF(AND(N23=\"SEMESTRAL\",J23=\"ANUAL\"),\"REVISAR FRECUENCIAS\",IF(AND(N23=\"TRIMESTRAL\",J23=\"MENSUAL\"),N17/3,IF(AND(N23=\"TRIMESTRAL\",J23=\"TRIMESTRAL\"),N17,IF(AND(N23=\"TRIMESTRAL\",J23=\"SEMESTRAL\"),\"REVISAR FRECUENCIAS\",IF(AND(N23=\"TRIMESTRAL\",J23=\"ANUAL\"),\"REVISAR FRECUENCIAS\",IF(AND(N23=\"MENSUAL\",J23=\"MENSUAL\"),N17,IF(AND(N23=\"MENSUAL\",J23=\"TRIMESTRAL\"),\"REVISAR FRECUENCIAS\",IF(AND(N23=\"MENSUAL\",J23=\"SEMESTRAL\"),\"REVISAR FRECUENCIAS\",IF(AND(N23=\"MENSUAL\",J23=\"ANUAL\"),\"REVISAR FRECUENCIAS\",\"\"))))))))))))))))","v":0.85},{"$f":"IF(AND(N23=\"ANUAL\",J23=\"MENSUAL\"),N17/12+D50,IF(AND(N23=\"ANUAL\",J23=\"TRIMESTRAL\"),N17/4+D50,IF(AND(N23=\"ANUAL\",J23=\"SEMESTRAL\"),N17/2+D50,IF(AND(N23=\"SEMESTRAL\",J23=\"MENSUAL\"),N17/6+D50,IF(AND(N23=\"SEMESTRAL\",J23=\"TRIMESTRAL\"),N17/2+D50,IF(AND(N23=\"SEMESTRAL\",J23=\"SEMESTRAL\"),N17,IF(AND(N23=\"TRIMESTRAL\",J23=\"MENSUAL\"),N17/3+D50,IF(AND(N23=\"TRIMESTRAL\",J23=\"TRIMESTRAL\"),N17,IF(AND(N23=\"MENSUAL\",J23=\"MENSUAL\"),N17,\"\")))))))))","v":0.85},{"$f":"IF(AND(N23=\"ANUAL\",J23=\"MENSUAL\"),N17/12+E50,IF(AND(N23=\"ANUAL\",J23=\"TRIMESTRAL\"),N17/4+E50,IF(AND(N23=\"SEMESTRAL\",J23=\"MENSUAL\"),N17/6+E50,IF(AND(N23=\"SEMESTRAL\",J23=\"TRIMESTRAL\"),N17/2,IF(AND(N23=\"TRIMESTRAL\",J23=\"MENSUAL\"),N17/3+E50,IF(AND(N23=\"TRIMESTRAL\",J23=\"TRIMESTRAL\"),N17,IF(AND(N23=\"MENSUAL\",J23=\"MENSUAL\"),N17,\"\")))))))","v":""},{"$f":"IF(AND(N23=\"ANUAL\",J23=\"MENSUAL\"),N17/12+F50,IF(AND(N23=\"ANUAL\",J23=\"TRIMESTRAL\"),N17/4+F50,IF(AND(N23=\"SEMESTRAL\",J23=\"MENSUAL\"),N17/6+F50,IF(AND(N23=\"SEMESTRAL\",J23=\"TRIMESTRAL\"),N17/2+F50,IF(AND(N23=\"TRIMESTRAL\",J23=\"MENSUAL\"),N17/3,IF(AND(N23=\"TRIMESTRAL\",J23=\"TRIMESTRAL\"),N17,IF(AND(N23=\"MENSUAL\",J23=\"MENSUAL\"),N17,\"\")))))))","v":""},{"$f":"IF(AND($N$23=\"ANUAL\",$J$23=\"MENSUAL\"),$N$17/12+G50,IF(AND(N23=\"SEMESTRAL\",J23=\"MENSUAL\"),N17/6+G50,IF(AND(N23=\"TRIMESTRAL\",J23=\"MENSUAL\"),N17/3+G50,IF(AND(N23=\"MENSUAL\",J23=\"MENSUAL\"),N17,\"\"))))","v":""},{"$f":"IF(AND($N$23=\"ANUAL\",$J$23=\"MENSUAL\"),$N$17/12+H50,IF(AND(N23=\"SEMESTRAL\",J23=\"MENSUAL\"),N17/6+H50,IF(AND(N23=\"TRIMESTRAL\",J23=\"MENSUAL\"),N17/3+H50,IF(AND(N23=\"MENSUAL\",J23=\"MENSUAL\"),N17,\"\"))))","v":""},{"$f":"IF(AND($N$23=\"ANUAL\",$J$23=\"MENSUAL\"),$N$17/12+I50,IF(AND(N23=\"SEMESTRAL\",J23=\"MENSUAL\"),N17/6,IF(AND(N23=\"TRIMESTRAL\",J23=\"MENSUAL\"),N17/3,IF(AND(N23=\"MENSUAL\",J23=\"MENSUAL\"),N17,\"\"))))","v":""},{"$f":"IF(AND($N$23=\"ANUAL\",$J$23=\"MENSUAL\"),$N$17/12+J50,IF(AND(N23=\"SEMESTRAL\",J23=\"MENSUAL\"),N17/6+J50,IF(AND(N23=\"TRIMESTRAL\",J23=\"MENSUAL\"),N17/3+J50,IF(AND(N23=\"MENSUAL\",J23=\"MENSUAL\"),N17,\"\"))))","v":""},{"$f":"IF(AND($N$23=\"ANUAL\",$J$23=\"MENSUAL\"),$N$17/12+K50,IF(AND(N23=\"SEMESTRAL\",J23=\"MENSUAL\"),N17/6+K50,IF(AND(N23=\"TRIMESTRAL\",J23=\"MENSUAL\"),N17/3+K50,IF(AND(N23=\"MENSUAL\",J23=\"MENSUAL\"),N17,\"\"))))","v":""},{"$f":"IF(AND($N$23=\"ANUAL\",$J$23=\"MENSUAL\"),$N$17/12+L50,IF(AND(N23=\"SEMESTRAL\",J23=\"MENSUAL\"),N17/6+L50,IF(AND(N23=\"TRIMESTRAL\",J23=\"MENSUAL\"),N17/3,IF(AND(N23=\"MENSUAL\",J23=\"MENSUAL\"),N17,\"\"))))","v":""},{"$f":"IF(AND($N$23=\"ANUAL\",$J$23=\"MENSUAL\"),$N$17/12+M50,IF(AND(N23=\"SEMESTRAL\",J23=\"MENSUAL\"),N17/6+M50,IF(AND(N23=\"TRIMESTRAL\",J23=\"MENSUAL\"),N17/3+M50,IF(AND(N23=\"MENSUAL\",J23=\"MENSUAL\"),N17,\"\"))))","v":""},{"$f":"IF(AND($N$23=\"ANUAL\",$J$23=\"MENSUAL\"),$N$17/12+N50,IF(AND(N23=\"SEMESTRAL\",J23=\"MENSUAL\"),N17/6+N50,IF(AND(N23=\"TRIMESTRAL\",J23=\"MENSUAL\"),N17/3+N50,IF(AND(N23=\"MENSUAL\",J23=\"MENSUAL\"),N17,\"\"))))","v":""}]
[]
[null,null,"NIVEL DE SEGREGACIÓN *"]
[null,null,"UNIDAD SEGREGADA (Ej. Facultad, Programa Académico, Área)",null,null,null,"RESULTADO",null,null,null,"ANÁLISIS DE DATOS SEGREGADO"]
[]
[]
[]
[]
[]
[]
[]
[]
[]
[]
[]
[]
[]
[]
[]
[]
[null,null,null,null,null,null,"Estratégico",null,null,"Eficacia"]
[null,null,null,null,null,null,"Misional",null,null,"Eficiencia"]
[null,null,null,null,null,null,"Apoyo",null,null,"Acreditación"]
[null,null,null,null,null,null,"Seguimiento, Medición, Análisis y Evaluación",null,null,"Positiva"]
[null,null,null,null,null,null,"Direccionamiento Estratégico",null,null,"Negativa"]
[null,null,null,null,null,null,"Planeación Institucional",null,null,"Por Unidad Regional"]
[null,null,null,null,null,null,"Proyectos Especiales y Relaciones Interinstitucionales",null,null,"Por Facultad"]
[null,null,null,null,null,null,"Sistemas Integrados",null,null,"Por Programa Académico"]
[null,null,null,null,null,null,"Autoevaluación y Acreditación",null,null,"Por área"]
[null,null,null,null,null,null,"Comunicaciones",null,null,"Por Laboratorio"]
[null,null,null,null,null,null,"Formación y Aprendizaje",null,null,"Otros"]
[null,null,null,null,null,null,"Ciencia, Tecnología e Innovación",null,null,"No Aplica"]
[null,null,null,null,null,null,"Interacción Social Universitaria"]
[null,null,null,null,null,null,"Bienestar Universitario"]
[null,null,null,null,null,null,"Admisiones y Registro"]
[null,null,null,null,null,null,"Graduados"]
[null,null,null,null,null,null,"Dialogando con el Mundo"]
[null,null,null,null,null,null,"Talento Humano"]
[null,null,null,null,null,null,"Jurídica"]
[null,null,null,null,null,null,"Financiera"]
[null,null,null,null,null,null,"Sistemas y Tecnología"]
[null,null,null,null,null,null,"Bienes y Servicios"]
[null,null,null,null,null,null,"Documental"]
[null,null,null,null,null,null,"Apoyo Académico"]
[null,null,null,null,null,null,"Control Interno"]
[null,null,null,null,null,null,"Control Disciplinario"]
[null,null,null,null,null,null,"Servicio de Atención al Ciudadano"]

{"sheet":"MIU-3","index":5,"n_rows":96,"n_cols":15,"rows_kept":96,"cut":false,"hidden":true,"merged":[[1,1,3,2],[4,2,7,3],[4,4,4,11],[4,12,4,14],[5,4,5,11],[5,12,5,14],[6,4,7,11],[6,12,6,14],[7,12,7,14],[15,2,15,14],[8,2,8,14],[9,2,10,14],[11,2,11,3],[11,4,11,7],[11,8,11,9],[11,10,11,14],[12,2,12,3],[12,4,12,14],[13,2,13,3],[13,4,13,14],[14,2,14,14],[16,15,17,15],[17,2,18,3],[17,4,17,5],[17,6,17,10],[17,11,18,12],[17,13,18,14],[18,4,18,5],[18,6,18,10],[16,2,16,3],[16,4,16,6],[16,7,16,8],[16,9,16,10],[16,11,16,12],[16,13,16,14],[19,2,21,3],[19,4,21,6],[19,7,21,8],[19,9,21,10],[19,11,19,14],[22,13,23,14],[23,2,23,3],[23,4,23,6],[25,2,25,14],[26,2,41,8],[26,9,26,14],[41,9,41,14],[22,2,22,3],[22,4,22,6],[22,7,23,8],[22,9,23,10],[22,11,23,12],[52,2,52,5],[52,6,52,9],[52,10,52,14],[26,15,27,15],[27,9,32,14],[33,9,33,14],[34,9,38,14],[39,9,39,14],[40,9,40,14],[43,2,43,14],[50,2,50,14],[51,2,51,5],[51,6,51,9],[51,10,51,14],[53,2,53,5],[53,6,53,9],[53,10,53,14],[54,2,54,5],[54,6,54,9],[54,10,54,14],[55,2,55,5],[55,6,55,9],[55,10,55,14],[56,2,56,5],[56,6,56,9],[56,10,56,14],[57,2,57,5],[57,6,57,9],[57,10,57,14],[58,2,58,5],[58,6,58,9],[58,10,58,14]]}
[]
[null,"      REGRESAR"]
[]
[]
[null,null,null,null,"MACROPROCESO ESTRATÉGICO",null,null,null,null,null,null,null,"CÓDIGO: ESGr027"]
[null,null,null,null,"PROCESO GESTIÓN SISTEMAS INTEGRADOS - CALIDAD",null,null,null,null,null,null,null,"VERSIÓN: 8"]
[null,null,null,null,"MATRIZ DE MEDICIÓN Y SEGUIMIENTO A LOS PROCESOS DE GESTIÓN",null,null,null,null,null,null,null,"VIGENCIA: 2023-07-28"]
[null,null,null,null,null,null,null,null,null,null,null,null,"PÁGINA: 4 de 7"]
[]
[null,null,"FICHA DE INDICADOR"]
[]
[null,null,"MACROPROCESO",null,"Misional",null,null,null,"NOMBRE DEL INDICADOR",null,"Satisfacción de la Institución o Empresa hacia el desempeño de la práctica o pasantía (PENDIENTE RESPONSABLE DE MEDICIÓN)"]
[null,null,"PROCESO GESTIÓN",null,"Interacción Social Universitaria"]
[null,null,"RESPONSABLE DE MEDICIÓN",null,"Dirección de Interacción Universitaria"]
[]
[null,null,"1. COMPORTAMIENTO DE INDICADOR"]
[null,null,"CLASIFICACIÓN DE LA MEDICIÓN",null,1,null,null,"TIPO DE INDICADOR",null,"Eficacia",null,"META ANUAL",null,0.95]
[null,null,"FORMULA",null,"NUMERADOR",null,"(# Evaluaciones Calificadas ≥ 4) * 100",null,null,null,null,"UNIDAD DE MEDIDA",null,"Porcentual"]
[null,null,null,null,"DENOMINADOR",null,"# Total Evaluaciones"]
[null,null,"TENDENCIA",null,"Positiva",null,null,"NIVEL DE SEGREGACIÓN *",null,"No Aplica",null,"ESCALA"]
[null,null,null,null,null,null,null,null,null,null,null,"Deficiente","Aceptable","Bueno","Excelente"]
[null,null,null,null,null,null,null,null,null,null,null,"0 - 59,9%","60% - 79,9%","80% - 94,9%","95% - 100%"]
[null,null,"ORIGEN DE DATOS NUMERADOR",null,"MIUr037 cuyas calificaciones sean superiores a 4",null,null,"FRECUENCIA DE LA MEDICIÓN",null,"SEMESTRAL",null,"FRECUENCIA DE RESULTADO",null,"SEMESTRAL"]
[null,null,"ORIGEN DE DATOS DENOMINADOR",null,"Total MIUr037 recibidos"]
[]
[null,null,"RESULTADOS"]
[null,null,null,null,null,null,null,null,null,"ANÁLISIS DE DATOS"]
[null,null,null,null,null,null,null,null,null,"PRIMER SEMESTRE: Se evidencia el no cumplimiento de la meta establecida del 95%, esto debido a que falta compromiso al registrar estas evaluaciones por parte de las instituciones o empresas.                                                                                                                                                                                       SEGUNDO SEMESTRE: Se evidencia el no cumplimiento de la meta establecida del 95%, ya que quedo el 5% por debajo, esto debido a que falta compromiso al registrar estas evaluaciones por parte de las instituciones o empresas."]
[]
[]
[]
[]
[]
[null,null,null,null,null,null,null,null,null,"ACCIÓN FORMULADA"]
[null,null,null,null,null,null,null,null,null,"PRIMER SEMESTRE: Desde Interacción Social Universitaria se realizará seguimiento de las prácticas y pasantías llevadas a cabo mediante llamadas a los pasantes y/o practicantes, correos electrónicos, etc. Así mismo, se propone trasladar este indicador a responsabilidad de las Facultades, ya que son los programas académicos quienes son los actores principales de las prácticas y/o pasantías de sus estudiantes y de las empresas donde estos realizan estas actividades.                                                                                                                                                                           SEGUNDO SEMESTRE: Desde Interacción Social Universitaria se realizará seguimiento de las prácticas y pasantías llevadas a cabo mediante llamadas a los pasantes y/o practicantes, correos electrónicos, etc. Así mismo, se propone trasladar este indicador a responsabilidad de las Facultades, ya que son los programas académicos quienes son los actores principales de las prácticas y/o pasantías de sus estudiantes y de las empresas donde estos realizan estas actividades."]
[]
[]
[]
[]
[null,null,null,null,null,null,null,null,null,"RESPONSABLE "]
[null,null,null,null,null,null,null,null,null,{"$f":"E14","v":"Dirección de Interacción Universitaria"}]
[]
[]
[null,null,"PERIODO DE EVALUACIÓN"]
[null,null,"MES",{"$f":"IF(J23=\"MENSUAL\",\"ENERO\",IF(J23=\"TRIMESTRAL\",\"MARZO\",IF(J23=\"SEMESTRAL\",\"JUNIO\",IF(J23=\"ANUAL\",YEAR(TODAY()),\"\"))))","v":"JUNIO"},{"$f":"IF(J23=\"MENSUAL\",\"FEBRERO\",IF(J23=\"TRIMESTRAL\",\"JUNIO\",IF(J23=\"SEMESTRAL\",\"DICIEMBRE\",\"\")))","v":"DICIEMBRE"},{"$f":"IF(J23=\"MENSUAL\",\"MARZO\",IF(J23=\"TRIMESTRAL\",\"SEPTIEMBRE\",\"\"))","v":""},{"$f":"IF(J23=\"MENSUAL\",\"ABRIL\",IF(J23=\"TRIMESTRAL\",\"DICIEMBRE\",\"\"))","v":""},{"$f":"IF(J23=\"MENSUAL\",\"MAYO\",\"\")","v":""},{"$f":"IF(J23=\"MENSUAL\",\"JUNIO\",\"\")","v":""},{"$f":"IF(J23=\"MENSUAL\",\"JULIO\",\"\")","v":""},{"$f":"IF(J23=\"MENSUAL\",\"AGOSTO\",\"\")","v":""},{"$f":"IF(J23=\"MENSUAL\",\"SEPTIEMBRE\",\"\")","v":""},{"$f":"IF(J23=\"MENSUAL\",\"OCTUBRE\",\"\")","v":""},{"$f":"IF(J23=\"MENSUAL\",\"NOVIEMBRE\",\"\")","v":""},{"$f":"IF(J23=\"MENSUAL\",\"DICIEMBRE\",\"\")","v":""}]
[null,null,{"$f":"G18","v":"(# Evaluaciones Calificadas ≥ 4) * 100"},309,210]
[null,null,{"$f":"G19","v":"# Total Evaluaciones"},349,233]
[null,null,"VALOR ",{"$f":"IFERROR(IF($E$17=1,D46/D47,IF($E$17=2,D46,\"\")),\"\")","v":0.88538681948424069},{"$f":"IFERROR(IF($E$17=1,E46/E47,IF($E$17=2,E46,\"\")),\"\")","v":0.90128755364806867},null,"","","","","","","","",""]
[null,null,"META PONDERADA",{"$f":"IF(AND(N23=\"ANUAL\",J23=\"MENSUAL\"),N17/12,IF(AND(N23=\"ANUAL\",J23=\"TRIMESTRAL\"),N17/4,IF(AND(N23=\"ANUAL\",J23=\"SEMESTRAL\"),N17/2,IF(AND(N23=\"ANUAL\",J23=\"ANUAL\"),N17,IF(AND(N23=\"SEMESTRAL\",J23=\"MENSUAL\"),N17/6,IF(AND(N23=\"SEMESTRAL\",J23=\"TRIMESTRAL\"),N17/2,IF(AND(N23=\"SEMESTRAL\",J23=\"SEMESTRAL\"),N17,IF(AND(N23=\"SEMESTRAL\",J23=\"ANUAL\"),\"REVISAR FRECUENCIAS\",IF(AND(N23=\"TRIMESTRAL\",J23=\"MENSUAL\"),N17/3,IF(AND(N23=\"TRIMESTRAL\",J23=\"TRIMESTRAL\"),N17,IF(AND(N23=\"TRIMESTRAL\",J23=\"SEMESTRAL\"),\"REVISAR FRECUENCIAS\",IF(AND(N23=\"TRIMESTRAL\",J23=\"ANUAL\"),\"REVISAR FRECUENCIAS\",IF(AND(N23=\"MENSUAL\",J23=\"MENSUAL\"),N17,IF(AND(N23=\"MENSUAL\",J23=\"TRIMESTRAL\"),\"REVISAR FRECUENCIAS\",IF(AND(N23=\"MENSUAL\",J23=\"SEMESTRAL\"),\"REVISAR FRECUENCIAS\",IF(AND(N23=\"MENSUAL\",J23=\"ANUAL\"),\"REVISAR FRECUENCIAS\",\"\"))))))))))))))))","v":0.95},{"$f":"IF(AND(N23=\"ANUAL\",J23=\"MENSUAL\"),N17/12+D49,IF(AND(N23=\"ANUAL\",J23=\"TRIMESTRAL\"),N17/4+D49,IF(AND(N23=\"ANUAL\",J23=\"SEMESTRAL\"),N17/2+D49,IF(AND(N23=\"SEMESTRAL\",J23=\"MENSUAL\"),N17/6+D49,IF(AND(N23=\"SEMESTRAL\",J23=\"TRIMESTRAL\"),N17/2+D49,IF(AND(N23=\"SEMESTRAL\",J23=\"SEMESTRAL\"),N17,IF(AND(N23=\"TRIMESTRAL\",J23=\"MENSUAL\"),N17/3+D49,IF(AND(N23=\"TRIMESTRAL\",J23=\"TRIMESTRAL\"),N17,IF(AND(N23=\"MENSUAL\",J23=\"MENSUAL\"),N17,\"\")))))))))","v":0.95},{"$f":"IF(AND(N23=\"ANUAL\",J23=\"MENSUAL\"),N17/12+E49,IF(AND(N23=\"ANUAL\",J23=\"TRIMESTRAL\"),N17/4+E49,IF(AND(N23=\"SEMESTRAL\",J23=\"MENSUAL\"),N17/6+E49,IF(AND(N23=\"SEMESTRAL\",J23=\"TRIMESTRAL\"),N17/2,IF(AND(N23=\"TRIMESTRAL\",J23=\"MENSUAL\"),N17/3+E49,IF(AND(N23=\"TRIMESTRAL\",J23=\"TRIMESTRAL\"),N17,IF(AND(N23=\"MENSUAL\",J23=\"MENSUAL\"),N17,\"\")))))))","v":""},{"$f":"IF(AND(N23=\"ANUAL\",J23=\"MENSUAL\"),N17/12+F49,IF(AND(N23=\"ANUAL\",J23=\"TRIMESTRAL\"),N17/4+F49,IF(AND(N23=\"SEMESTRAL\",J23=\"MENSUAL\"),N17/6+F49,IF(AND(N23=\"SEMESTRAL\",J23=\"TRIMESTRAL\"),N17/2+F49,IF(AND(N23=\"TRIMESTRAL\",J23=\"MENSUAL\"),N17/3,IF(AND(N23=\"TRIMESTRAL\",J23=\"TRIMESTRAL\"),N17,IF(AND(N23=\"MENSUAL\",J23=\"MENSUAL\"),N17,\"\")))))))","v":""},{"$f":"IF(AND($N$23=\"ANUAL\",$J$23=\"MENSUAL\"),$N$17/12+G49,IF(AND(N23=\"SEMESTRAL\",J23=\"MENSUAL\"),N17/6+G49,IF(AND(N23=\"TRIMESTRAL\",J23=\"MENSUAL\"),N17/3+G49,IF(AND(N23=\"MENSUAL\",J23=\"MENSUAL\"),N17,\"\"))))","v":""},{"$f":"IF(AND($N$23=\"ANUAL\",$J$23=\"MENSUAL\"),$N$17/12+H49,IF(AND(N23=\"SEMESTRAL\",J23=\"MENSUAL\"),N17/6+H49,IF(AND(N23=\"TRIMESTRAL\",J23=\"MENSUAL\"),N17/3+H49,IF(AND(N23=\"MENSUAL\",J23=\"MENSUAL\"),N17,\"\"))))","v":""},{"$f":"IF(AND($N$23=\"ANUAL\",$J$23=\"MENSUAL\"),$N$17/12+I49,IF(AND(N23=\"SEMESTRAL\",J23=\"MENSUAL\"),N17/6,IF(AND(N23=\"TRIMESTRAL\",J23=\"MENSUAL\"),N17/3,IF(AND(N23=\"MENSUAL\",J23=\"MENSUAL\"),N17,\"\"))))","v":""},{"$f":"IF(AND($N$23=\"ANUAL\",$J$23=\"MENSUAL\"),$N$17/12+J49,IF(AND(N23=\"SEMESTRAL\",J23=\"MENSUAL\"),N17/6+J49,IF(AND(N23=\"TRIMESTRAL\",J23=\"MENSUAL\"),N17/3+J49,IF(AND(N23=\"MENSUAL\",J23=\"MENSUAL\"),N17,\"\"))))","v":""},{"$f":"IF(AND($N$23=\"ANUAL\",$J$23=\"MENSUAL\"),$N$17/12+K49,IF(AND(N23=\"SEMESTRAL\",J23=\"MENSUAL\"),N17/6+K49,IF(AND(N23=\"TRIMESTRAL\",J23=\"MENSUAL\"),N17/3+K49,IF(AND(N23=\"MENSUAL\",J23=\"MENSUAL\"),N17,\"\"))))","v":""},{"$f":"IF(AND($N$23=\"ANUAL\",$J$23=\"MENSUAL\"),$N$17/12+L49,IF(AND(N23=\"SEMESTRAL\",J23=\"MENSUAL\"),N17/6+L49,IF(AND(N23=\"TRIMESTRAL\",J23=\"MENSUAL\"),N17/3,IF(AND(N23=\"MENSUAL\",J23=\"MENSUAL\"),N17,\"\"))))","v":""},{"$f":"IF(AND($N$23=\"ANUAL\",$J$23=\"MENSUAL\"),$N$17/12+M49,IF(AND(N23=\"SEMESTRAL\",J23=\"MENSUAL\"),N17/6+M49,IF(AND(N23=\"TRIMESTRAL\",J23=\"MENSUAL\"),N17/3+M49,IF(AND(N23=\"MENSUAL\",J23=\"MENSUAL\"),N17,\"\"))))","v":""},{"$f":"IF(AND($N$23=\"ANUAL\",$J$23=\"MENSUAL\"),$N$17/12+N49,IF(AND(N23=\"SEMESTRAL\",J23=\"MENSUAL\"),N17/6+N49,IF(AND(N23=\"TRIMESTRAL\",J23=\"MENSUAL\"),N17/3+N49,IF(AND(N23=\"MENSUAL\",J23=\"MENSUAL\"),N17,\"\"))))","v":""}]
[]
[null,null,"NIVEL DE SEGREGACIÓN *"]
[null,null,"UNIDAD SEGREGADA (Ej. Facultad, Programa Académico, Área)",null,null,null,"RESULTADO",null,null,null,"ANÁLISIS DE DATOS SEGREGADO"]
[]
[]
[]
[]
[]
[]
[]
[]
[]
[]
[]
[]
[]
[]
[]
[]
[]
[null,null,null,null,null,null,"Estratégico",null,null,"Eficacia"]
[null,null,null,null,null,null,"Misional",null,null,"Eficiencia"]
[null,null,null,null,null,null,"Apoyo",null,null,"Acreditación"]
[null,null,null,null,null,null,"Seguimiento, Medición, Análisis y Evaluación",null,null,"Positiva"]
[null,null,null,null,null,null,"Direccionamiento Estratégico",null,null,"Negativa"]
[null,null,null,null,null,null,"Planeación Institucional",null,null,"Por Unidad Regional"]
[null,null,null,null,null,null,"Proyectos Especiales y Relaciones Interinstitucionales",null,null,"Por Facultad"]
[null,null,null,null,null,null,"Sistemas Integrados",null,null,"Por Programa Académico"]
[null,null,null,null,null,null,"Autoevaluación y Acreditación",null,null,"Por área"]
[null,null,null,null,null,null,"Comunicaciones",null,null,"Por Laboratorio"]
[null,null,null,null,null,null,"Formación y Aprendizaje",null,null,"Otros"]
[null,null,null,null,null,null,"Ciencia, Tecnología e Innovación",null,null,"No Aplica"]
[null,null,null,null,null,null,"Interacción Social Universitaria"]
[null,null,null,null,null,null,"Bienestar Universitario"]
[null,null,null,null,null,null,"Admisiones y Registro"]
[null,null,null,null,null,null,"Graduados"]
[null,null,null,null,null,null,"Dialogando con el Mundo"]
[null,null,null,null,null,null,"Talento Humano"]
[null,null,null,null,null,null,"Jurídica"]
[null,null,null,null,null,null,"Financiera"]
[null,null,null,null,null,null,"Sistemas y Tecnología"]
[null,null,null,null,null,null,"Bienes y Servicios"]
[null,null,null,null,null,null,"Documental"]
[null,null,null,null,null,null,"Apoyo Académico"]
[null,null,null,null,null,null,"Control Interno"]
[null,null,null,null,null,null,"Control Disciplinario"]
[null,null,null,null,null,null,"Servicio de Atención al Ciudadano"]

{"sheet":"MIU-4","index":6,"n_rows":97,"n_cols":15,"rows_kept":97,"cut":false,"hidden":false,"merged":[[1,1,3,2],[4,2,7,3],[4,4,4,11],[4,12,4,14],[5,4,5,11],[5,12,5,14],[6,4,7,11],[6,12,6,14],[7,12,7,14],[15,2,15,14],[8,2,8,14],[9,2,10,14],[11,2,11,3],[11,4,11,7],[11,8,11,9],[11,10,11,14],[12,2,12,3],[12,4,12,14],[13,2,13,3],[13,4,13,14],[14,2,14,14],[16,15,17,15],[17,2,18,3],[17,4,17,5],[17,6,17,10],[17,11,18,12],[17,13,18,14],[18,4,18,5],[18,6,18,10],[16,2,16,3],[16,4,16,6],[16,7,16,8],[16,9,16,10],[16,11,16,12],[16,13,16,14],[19,2,21,3],[19,4,21,6],[19,7,21,8],[19,9,21,10],[19,11,19,14],[22,13,23,14],[23,2,23,3],[23,4,23,6],[25,2,25,14],[26,2,41,8],[26,9,26,14],[41,9,41,14],[22,2,22,3],[22,4,22,6],[22,7,23,8],[22,9,23,10],[22,11,23,12],[52,2,52,5],[52,6,52,9],[52,10,52,14],[26,15,27,15],[27,9,32,14],[33,9,33,14],[34,9,38,14],[39,9,39,14],[40,9,40,14],[43,2,43,14],[50,2,50,14],[51,2,51,5],[51,6,51,9],[51,10,51,14],[53,2,53,5],[53,6,53,9],[53,10,53,14],[54,2,54,5],[54,6,54,9],[54,10,54,14],[55,2,55,5],[55,6,55,9],[55,10,55,14],[56,2,56,5],[56,6,56,9],[56,10,56,14],[57,2,57,5],[57,6,57,9],[57,10,57,14],[58,2,58,5],[58,6,58,9],[58,10,58,14]]}
[]
[null,"      REGRESAR"]
[]
[]
[null,null,null,null,"MACROPROCESO ESTRATÉGICO",null,null,null,null,null,null,null,"CÓDIGO: ESGr027"]
[null,null,null,null,"PROCESO GESTIÓN SISTEMAS INTEGRADOS - CALIDAD",null,null,null,null,null,null,null,"VERSIÓN: 8"]
[null,null,null,null,"MATRIZ DE MEDICIÓN Y SEGUIMIENTO A LOS PROCESOS DE GESTIÓN",null,null,null,null,null,null,null,"VIGENCIA: 2023-07-28"]
[null,null,null,null,null,null,null,null,null,null,null,null,"PÁGINA: 5 de 7"]
[]
[null,null,"FICHA DE INDICADOR"]
[]
[null,null,"MACROPROCESO",null,"Misional",null,null,null,"NOMBRE DEL INDICADOR",null,"Evaluación de las actividades de Proyección Social"]
[null,null,"PROCESO GESTIÓN",null,"Interacción Social Universitaria"]
[null,null,"RESPONSABLE DE MEDICIÓN",null,"Dirección de Interacción Universitaria"]
[]
[null,null,"1. COMPORTAMIENTO DE INDICADOR"]
[null,null,"CLASIFICACIÓN DE LA MEDICIÓN",null,1,null,null,"TIPO DE INDICADOR",null,"Eficacia",null,"META ANUAL",null,0.95]
[null,null,"FORMULA",null,"NUMERADOR",null,"(# Evaluaciones Calificadas ≥ 4) * 100",null,null,null,null,"UNIDAD DE MEDIDA",null,"Porcentual"]
[null,null,null,null,"DENOMINADOR",null,"# Total Evaluaciones"]
[null,null,"TENDENCIA",null,"Positiva",null,null,"NIVEL DE SEGREGACIÓN *",null,"No Aplica",null,"ESCALA"]
[null,null,null,null,null,null,null,null,null,null,null,"Deficiente","Aceptable","Bueno","Excelente"]
[null,null,null,null,null,null,null,null,null,null,null,"0 - 59,9%","60% - 89,9%","90% - 94,9%","95% - 100%"]
[null,null,"ORIGEN DE DATOS NUMERADOR",null,"MIUr015 de los eventos realizados en el semestre",null,null,"FRECUENCIA DE LA MEDICIÓN",null,"SEMESTRAL",null,"FRECUENCIA DE RESULTADO",null,"SEMESTRAL"]
[null,null,"ORIGEN DE DATOS DENOMINADOR",null,"Total MIUr015 recibidos"]
[]
[null,null,"RESULTADOS"]
[null,null,null,null,null,null,null,null,null,"ANÁLISIS DE DATOS"]
[null,null,null,null,null,null,null,null,null,"PRIMER SEMESTRE 2024.1: Realizado el análisis de las 141 evaluaciones en las diferentes actividades llevadas a cabo durante el primer periodo académico 2024, se evidencia que las acciones formativas tales como cursos, diplomados, congresos y seminarios realizados tuvierón gran acogida por parte de los participantes, teniendo en cuenta que de las 141 evaluaciones, 134 obtuvierón una calificación igual o mayor a 4.  por ende se cumple el indicador. \n\nSEGUNDO SEMESTRE 2024.2:  Revisando las 23 evaluaciones en las diferentes actividades,  se evidencia que las acciones formativas tales como cursos, diplomados, congresos y seminarios realizados tuvierón gran acogida por parte de los participantes, teniendo en cuenta que de las  preguntas evaluadas,  obtuvierón una calificación igual o mayor a (4) buena, además lograron la calificación de (5)  en categoria excelente, por ende se cumple el indicador con un 96%.  Es decir, el total  de evaluaciones (23),   obtuvierón una calificación igual o mayor a (4) Buena,  lograron 59 preguntas y con  calificación (5) Excelente se lograron 195 preguntas, para  una sumatoria de 254 preguntas y solo 1 encuestas con una (1) respuesta con calificación  regular. "]
[]
[]
[]
[]
[]
[null,null,null,null,null,null,null,null,null,"ACCIÓN FORMULADA"]
[null,null,null,null,null,null,null,null,null,"N/A"]
[]
[]
[]
[]
[null,null,null,null,null,null,null,null,null,"RESPONSABLE "]
[null,null,null,null,null,null,null,null,null,{"$f":"E14","v":"Dirección de Interacción Universitaria"}]
[]
[]
[null,null,"PERIODO DE EVALUACIÓN"]
[null,null,"MES",{"$f":"IF(J23=\"MENSUAL\",\"ENERO\",IF(J23=\"TRIMESTRAL\",\"MARZO\",IF(J23=\"SEMESTRAL\",\"JUNIO\",IF(J23=\"ANUAL\",YEAR(TODAY()),\"\"))))","v":"JUNIO"},{"$f":"IF(J23=\"MENSUAL\",\"FEBRERO\",IF(J23=\"TRIMESTRAL\",\"JUNIO\",IF(J23=\"SEMESTRAL\",\"DICIEMBRE\",\"\")))","v":"DICIEMBRE"},{"$f":"IF(J23=\"MENSUAL\",\"MARZO\",IF(J23=\"TRIMESTRAL\",\"SEPTIEMBRE\",\"\"))","v":""},{"$f":"IF(J23=\"MENSUAL\",\"ABRIL\",IF(J23=\"TRIMESTRAL\",\"DICIEMBRE\",\"\"))","v":""},{"$f":"IF(J23=\"MENSUAL\",\"MAYO\",\"\")","v":""},{"$f":"IF(J23=\"MENSUAL\",\"JUNIO\",\"\")","v":""},{"$f":"IF(J23=\"MENSUAL\",\"JULIO\",\"\")","v":""},{"$f":"IF(J23=\"MENSUAL\",\"AGOSTO\",\"\")","v":""},{"$f":"IF(J23=\"MENSUAL\",\"SEPTIEMBRE\",\"\")","v":""},{"$f":"IF(J23=\"MENSUAL\",\"OCTUBRE\",\"\")","v":""},{"$f":"IF(J23=\"MENSUAL\",\"NOVIEMBRE\",\"\")","v":""},{"$f":"IF(J23=\"MENSUAL\",\"DICIEMBRE\",\"\")","v":""}]
[null,null,{"$f":"G18","v":"(# Evaluaciones Calificadas ≥ 4) * 100"},134,22]
[null,null,{"$f":"G19","v":"# Total Evaluaciones"},141,23]
[null,null,"VALOR ",{"$f":"IFERROR(IF($E$17=1,D46/D47,IF($E$17=2,D46,\"\")),\"\")","v":0.95035460992907805},{"$f":"IFERROR(IF($E$17=1,E46/E47,IF($E$17=2,E46,\"\")),\"\")","v":0.95652173913043481},null,"","","","","","","","",""]
[null,null,"META PONDERADA",{"$f":"IF(AND(N23=\"ANUAL\",J23=\"MENSUAL\"),N17/12,IF(AND(N23=\"ANUAL\",J23=\"TRIMESTRAL\"),N17/4,IF(AND(N23=\"ANUAL\",J23=\"SEMESTRAL\"),N17/2,IF(AND(N23=\"ANUAL\",J23=\"ANUAL\"),N17,IF(AND(N23=\"SEMESTRAL\",J23=\"MENSUAL\"),N17/6,IF(AND(N23=\"SEMESTRAL\",J23=\"TRIMESTRAL\"),N17/2,IF(AND(N23=\"SEMESTRAL\",J23=\"SEMESTRAL\"),N17,IF(AND(N23=\"SEMESTRAL\",J23=\"ANUAL\"),\"REVISAR FRECUENCIAS\",IF(AND(N23=\"TRIMESTRAL\",J23=\"MENSUAL\"),N17/3,IF(AND(N23=\"TRIMESTRAL\",J23=\"TRIMESTRAL\"),N17,IF(AND(N23=\"TRIMESTRAL\",J23=\"SEMESTRAL\"),\"REVISAR FRECUENCIAS\",IF(AND(N23=\"TRIMESTRAL\",J23=\"ANUAL\"),\"REVISAR FRECUENCIAS\",IF(AND(N23=\"MENSUAL\",J23=\"MENSUAL\"),N17,IF(AND(N23=\"MENSUAL\",J23=\"TRIMESTRAL\"),\"REVISAR FRECUENCIAS\",IF(AND(N23=\"MENSUAL\",J23=\"SEMESTRAL\"),\"REVISAR FRECUENCIAS\",IF(AND(N23=\"MENSUAL\",J23=\"ANUAL\"),\"REVISAR FRECUENCIAS\",\"\"))))))))))))))))","v":0.95},{"$f":"IF(AND(N23=\"ANUAL\",J23=\"MENSUAL\"),N17/12+D49,IF(AND(N23=\"ANUAL\",J23=\"TRIMESTRAL\"),N17/4+D49,IF(AND(N23=\"ANUAL\",J23=\"SEMESTRAL\"),N17/2+D49,IF(AND(N23=\"SEMESTRAL\",J23=\"MENSUAL\"),N17/6+D49,IF(AND(N23=\"SEMESTRAL\",J23=\"TRIMESTRAL\"),N17/2+D49,IF(AND(N23=\"SEMESTRAL\",J23=\"SEMESTRAL\"),N17,IF(AND(N23=\"TRIMESTRAL\",J23=\"MENSUAL\"),N17/3+D49,IF(AND(N23=\"TRIMESTRAL\",J23=\"TRIMESTRAL\"),N17,IF(AND(N23=\"MENSUAL\",J23=\"MENSUAL\"),N17,\"\")))))))))","v":0.95},{"$f":"IF(AND(N23=\"ANUAL\",J23=\"MENSUAL\"),N17/12+E49,IF(AND(N23=\"ANUAL\",J23=\"TRIMESTRAL\"),N17/4+E49,IF(AND(N23=\"SEMESTRAL\",J23=\"MENSUAL\"),N17/6+E49,IF(AND(N23=\"SEMESTRAL\",J23=\"TRIMESTRAL\"),N17/2,IF(AND(N23=\"TRIMESTRAL\",J23=\"MENSUAL\"),N17/3+E49,IF(AND(N23=\"TRIMESTRAL\",J23=\"TRIMESTRAL\"),N17,IF(AND(N23=\"MENSUAL\",J23=\"MENSUAL\"),N17,\"\")))))))","v":""},{"$f":"IF(AND(N23=\"ANUAL\",J23=\"MENSUAL\"),N17/12+F49,IF(AND(N23=\"ANUAL\",J23=\"TRIMESTRAL\"),N17/4+F49,IF(AND(N23=\"SEMESTRAL\",J23=\"MENSUAL\"),N17/6+F49,IF(AND(N23=\"SEMESTRAL\",J23=\"TRIMESTRAL\"),N17/2+F49,IF(AND(N23=\"TRIMESTRAL\",J23=\"MENSUAL\"),N17/3,IF(AND(N23=\"TRIMESTRAL\",J23=\"TRIMESTRAL\"),N17,IF(AND(N23=\"MENSUAL\",J23=\"MENSUAL\"),N17,\"\")))))))","v":""},{"$f":"IF(AND($N$23=\"ANUAL\",$J$23=\"MENSUAL\"),$N$17/12+G49,IF(AND(N23=\"SEMESTRAL\",J23=\"MENSUAL\"),N17/6+G49,IF(AND(N23=\"TRIMESTRAL\",J23=\"MENSUAL\"),N17/3+G49,IF(AND(N23=\"MENSUAL\",J23=\"MENSUAL\"),N17,\"\"))))","v":""},{"$f":"IF(AND($N$23=\"ANUAL\",$J$23=\"MENSUAL\"),$N$17/12+H49,IF(AND(N23=\"SEMESTRAL\",J23=\"MENSUAL\"),N17/6+H49,IF(AND(N23=\"TRIMESTRAL\",J23=\"MENSUAL\"),N17/3+H49,IF(AND(N23=\"MENSUAL\",J23=\"MENSUAL\"),N17,\"\"))))","v":""},{"$f":"IF(AND($N$23=\"ANUAL\",$J$23=\"MENSUAL\"),$N$17/12+I49,IF(AND(N23=\"SEMESTRAL\",J23=\"MENSUAL\"),N17/6,IF(AND(N23=\"TRIMESTRAL\",J23=\"MENSUAL\"),N17/3,IF(AND(N23=\"MENSUAL\",J23=\"MENSUAL\"),N17,\"\"))))","v":""},{"$f":"IF(AND($N$23=\"ANUAL\",$J$23=\"MENSUAL\"),$N$17/12+J49,IF(AND(N23=\"SEMESTRAL\",J23=\"MENSUAL\"),N17/6+J49,IF(AND(N23=\"TRIMESTRAL\",J23=\"MENSUAL\"),N17/3+J49,IF(AND(N23=\"MENSUAL\",J23=\"MENSUAL\"),N17,\"\"))))","v":""},{"$f":"IF(AND($N$23=\"ANUAL\",$J$23=\"MENSUAL\"),$N$17/12+K49,IF(AND(N23=\"SEMESTRAL\",J23=\"MENSUAL\"),N17/6+K49,IF(AND(N23=\"TRIMESTRAL\",J23=\"MENSUAL\"),N17/3+K49,IF(AND(N23=\"MENSUAL\",J23=\"MENSUAL\"),N17,\"\"))))","v":""},{"$f":"IF(AND($N$23=\"ANUAL\",$J$23=\"MENSUAL\"),$N$17/12+L49,IF(AND(N23=\"SEMESTRAL\",J23=\"MENSUAL\"),N17/6+L49,IF(AND(N23=\"TRIMESTRAL\",J23=\"MENSUAL\"),N17/3,IF(AND(N23=\"MENSUAL\",J23=\"MENSUAL\"),N17,\"\"))))","v":""},{"$f":"IF(AND($N$23=\"ANUAL\",$J$23=\"MENSUAL\"),$N$17/12+M49,IF(AND(N23=\"SEMESTRAL\",J23=\"MENSUAL\"),N17/6+M49,IF(AND(N23=\"TRIMESTRAL\",J23=\"MENSUAL\"),N17/3+M49,IF(AND(N23=\"MENSUAL\",J23=\"MENSUAL\"),N17,\"\"))))","v":""},{"$f":"IF(AND($N$23=\"ANUAL\",$J$23=\"MENSUAL\"),$N$17/12+N49,IF(AND(N23=\"SEMESTRAL\",J23=\"MENSUAL\"),N17/6+N49,IF(AND(N23=\"TRIMESTRAL\",J23=\"MENSUAL\"),N17/3+N49,IF(AND(N23=\"MENSUAL\",J23=\"MENSUAL\"),N17,\"\"))))","v":""}]
[]
[null,null,"NIVEL DE SEGREGACIÓN *"]
[null,null,"UNIDAD SEGREGADA (Ej. Facultad, Programa Académico, Área)",null,null,null,"RESULTADO",null,null,null,"ANÁLISIS DE DATOS SEGREGADO"]
[]
[]
[]
[]
[]
[]
[]
[]
[]
[]
[]
[]
[]
[]
[]
[]
[]
[]
[null,null,null,null,null,null,"Estratégico",null,null,"Eficacia"]
[null,null,null,null,null,null,"Misional",null,null,"Eficiencia"]
[null,null,null,null,null,null,"Apoyo",null,null,"Acreditación"]
[null,null,null,null,null,null,"Seguimiento, Medición, Análisis y Evaluación",null,null,"Positiva"]
[null,null,null,null,null,null,"Direccionamiento Estratégico",null,null,"Negativa"]
[null,null,null,null,null,null,"Planeación Institucional",null,null,"Por Unidad Regional"]
[null,null,null,null,null,null,"Proyectos Especiales y Relaciones Interinstitucionales",null,null,"Por Facultad"]
[null,null,null,null,null,null,"Sistemas Integrados",null,null,"Por Programa Académico"]
[null,null,null,null,null,null,"Autoevaluación y Acreditación",null,null,"Por área"]
[null,null,null,null,null,null,"Comunicaciones",null,null,"Por Laboratorio"]
[null,null,null,null,null,null,"Formación y Aprendizaje",null,null,"Otros"]
[null,null,null,null,null,null,"Ciencia, Tecnología e Innovación",null,null,"No Aplica"]
[null,null,null,null,null,null,"Interacción Social Universitaria"]
[null,null,null,null,null,null,"Bienestar Universitario"]
[null,null,null,null,null,null,"Admisiones y Registro"]
[null,null,null,null,null,null,"Graduados"]
[null,null,null,null,null,null,"Dialogando con el Mundo"]
[null,null,null,null,null,null,"Talento Humano"]
[null,null,null,null,null,null,"Jurídica"]
[null,null,null,null,null,null,"Financiera"]
[null,null,null,null,null,null,"Sistemas y Tecnología"]
[null,null,null,null,null,null,"Bienes y Servicios"]
[null,null,null,null,null,null,"Documental"]
[null,null,null,null,null,null,"Apoyo Académico"]
[null,null,null,null,null,null,"Control Interno"]
[null,null,null,null,null,null,"Control Disciplinario"]
[null,null,null,null,null,null,"Servicio de Atención al Ciudadano"]

{"sheet":"MIU-6 en construcción","index":7,"n_rows":97,"n_cols":15,"rows_kept":97,"cut":false,"hidden":true,"merged":[[1,1,3,2],[4,2,7,3],[4,4,4,11],[4,12,4,14],[5,4,5,11],[5,12,5,14],[6,4,7,11],[6,12,6,14],[7,12,7,14],[15,2,15,14],[8,2,8,14],[9,2,10,14],[11,2,11,3],[11,4,11,7],[11,8,11,9],[11,10,11,14],[12,2,12,3],[12,4,12,14],[13,2,13,3],[13,4,13,14],[14,2,14,14],[16,15,17,15],[17,2,18,3],[17,4,17,5],[17,6,17,10],[17,11,18,12],[17,13,18,14],[18,4,18,5],[18,6,18,10],[16,2,16,3],[16,4,16,6],[16,7,16,8],[16,9,16,10],[16,11,16,12],[16,13,16,14],[19,2,21,3],[19,4,21,6],[19,7,21,8],[19,9,21,10],[19,11,19,14],[22,13,23,14],[23,2,23,3],[23,4,23,6],[25,2,25,14],[26,2,41,8],[26,9,26,14],[41,9,41,14],[22,2,22,3],[22,4,22,6],[22,7,23,8],[22,9,23,10],[22,11,23,12],[52,2,52,5],[52,6,52,9],[52,10,52,14],[26,15,27,15],[27,9,32,14],[33,9,33,14],[34,9,38,14],[39,9,39,14],[40,9,40,14],[43,2,43,14],[50,2,50,14],[51,2,51,5],[51,6,51,9],[51,10,51,14],[53,2,53,5],[53,6,53,9],[53,10,53,14],[54,2,54,5],[54,6,54,9],[54,10,54,14],[55,2,55,5],[55,6,55,9],[55,10,55,14],[56,2,56,5],[56,6,56,9],[56,10,56,14],[57,2,57,5],[57,6,57,9],[57,10,57,14],[58,2,58,5],[58,6,58,9],[58,10,58,14]]}
[]
[null,"      REGRESAR"]
[]
[]
[null,null,null,null,"MACROPROCESO ESTRATÉGICO",null,null,null,null,null,null,null,"CÓDIGO: ESGr027"]
[null,null,null,null,"PROCESO GESTIÓN SISTEMAS INTEGRADOS",null,null,null,null,null,null,null,"VERSIÓN: 7"]
[null,null,null,null,"MATRIZ DE MEDICIÓN Y SEGUIMIENTO A LOS PROCESOS DE GESTIÓN",null,null,null,null,null,null,null,"VIGENCIA: 2020-03-31"]
[null,null,null,null,null,null,null,null,null,null,null,null,"PÁGINA: 1 de 1"]
[]
[null,null,"FICHA DE INDICADOR"]
[]
[null,null,"MACROPROCESO",null,"Misional",null,null,null,"NOMBRE DEL INDICADOR",null,"Satisfacción de los beneficiarios de los proyectos por Interacción Social"]
[null,null,"PROCESO GESTIÓN",null,"Interacción Social Universitaria"]
[null,null,"RESPONSABLE DE MEDICIÓN",null,"Dirección de Interacción Universitaria"]
[]
[null,null,"1. COMPORTAMIENTO DE INDICADOR"]
[null,null,"CLASIFICACIÓN DE LA MEDICIÓN",null,1,null,null,"TIPO DE INDICADOR",null,"Eficacia",null,"META ANUAL",null,0.9]
[null,null,"FORMULA",null,"NUMERADOR",null,"(# Evaluaciones Calificadas ≥ 4) * 100",null,null,null,null,"UNIDAD DE MEDIDA",null,"Porcentual"]
[null,null,null,null,"DENOMINADOR",null,"# Total Evaluaciones"]
[null,null,"TENDENCIA",null,"Positiva",null,null,"NIVEL DE SEGREGACIÓN *",null,"No Aplica",null,"ESCALA"]
[null,null,null,null,null,null,null,null,null,null,null,"Deficiente","Aceptable","Bueno","Excelente"]
[null,null,null,null,null,null,null,null,null,null,null,"0 - 59,9%","60% - 89%","90% - 95%","96% - 100%"]
[null,null,"ORIGEN DE DATOS NUMERADOR",null,"MIUr015 de los eventos realizados en el semestre",null,null,"FRECUENCIA DE LA MEDICIÓN",null,"SEMESTRAL",null,"FRECUENCIA DE RESULTADO",null,"SEMESTRAL"]
[null,null,"ORIGEN DE DATOS DENOMINADOR",null,"Total MIUr015 recibidos"]
[]
[null,null,"RESULTADOS"]
[null,null,null,null,null,null,null,null,null,"ANÁLISIS DE DATOS"]
[]
[]
[]
[]
[]
[]
[null,null,null,null,null,null,null,null,null,"ACCIÓN FORMULADA"]
[]
[]
[]
[]
[]
[null,null,null,null,null,null,null,null,null,"RESPONSABLE "]
[null,null,null,null,null,null,null,null,null,{"$f":"E14","v":"Dirección de Interacción Universitaria"}]
[]
[]
[null,null,"PERIODO DE EVALUACIÓN"]
[null,null,"MES",{"$f":"IF(J23=\"MENSUAL\",\"ENERO\",IF(J23=\"TRIMESTRAL\",\"MARZO\",IF(J23=\"SEMESTRAL\",\"JUNIO\",IF(J23=\"ANUAL\",YEAR(TODAY()),\"\"))))","v":"JUNIO"},{"$f":"IF(J23=\"MENSUAL\",\"FEBRERO\",IF(J23=\"TRIMESTRAL\",\"JUNIO\",IF(J23=\"SEMESTRAL\",\"DICIEMBRE\",\"\")))","v":"DICIEMBRE"},{"$f":"IF(J23=\"MENSUAL\",\"MARZO\",IF(J23=\"TRIMESTRAL\",\"SEPTIEMBRE\",\"\"))","v":""},{"$f":"IF(J23=\"MENSUAL\",\"ABRIL\",IF(J23=\"TRIMESTRAL\",\"DICIEMBRE\",\"\"))","v":""},{"$f":"IF(J23=\"MENSUAL\",\"MAYO\",\"\")","v":""},{"$f":"IF(J23=\"MENSUAL\",\"JUNIO\",\"\")","v":""},{"$f":"IF(J23=\"MENSUAL\",\"JULIO\",\"\")","v":""},{"$f":"IF(J23=\"MENSUAL\",\"AGOSTO\",\"\")","v":""},{"$f":"IF(J23=\"MENSUAL\",\"SEPTIEMBRE\",\"\")","v":""},{"$f":"IF(J23=\"MENSUAL\",\"OCTUBRE\",\"\")","v":""},{"$f":"IF(J23=\"MENSUAL\",\"NOVIEMBRE\",\"\")","v":""},{"$f":"IF(J23=\"MENSUAL\",\"DICIEMBRE\",\"\")","v":""}]
[null,null,{"$f":"G18","v":"(# Evaluaciones Calificadas ≥ 4) * 100"}]
[null,null,{"$f":"G19","v":"# Total Evaluaciones"}]
[null,null,"VALOR ",{"$f":"IFERROR(IF($E$17=1,D46/D47,IF($E$17=2,D46,\"\")),\"\")","v":""},{"$f":"IFERROR(IF($E$17=1,E46/E47,IF($E$17=2,E46,\"\")),\"\")","v":""},"","","","","","","","","",""]
[null,null,"META PONDERADA",{"$f":"IF(AND(N23=\"ANUAL\",J23=\"MENSUAL\"),N17/12,IF(AND(N23=\"ANUAL\",J23=\"TRIMESTRAL\"),N17/4,IF(AND(N23=\"ANUAL\",J23=\"SEMESTRAL\"),N17/2,IF(AND(N23=\"ANUAL\",J23=\"ANUAL\"),N17,IF(AND(N23=\"SEMESTRAL\",J23=\"MENSUAL\"),N17/6,IF(AND(N23=\"SEMESTRAL\",J23=\"TRIMESTRAL\"),N17/2,IF(AND(N23=\"SEMESTRAL\",J23=\"SEMESTRAL\"),N17,IF(AND(N23=\"SEMESTRAL\",J23=\"ANUAL\"),\"REVISAR FRECUENCIAS\",IF(AND(N23=\"TRIMESTRAL\",J23=\"MENSUAL\"),N17/3,IF(AND(N23=\"TRIMESTRAL\",J23=\"TRIMESTRAL\"),N17,IF(AND(N23=\"TRIMESTRAL\",J23=\"SEMESTRAL\"),\"REVISAR FRECUENCIAS\",IF(AND(N23=\"TRIMESTRAL\",J23=\"ANUAL\"),\"REVISAR FRECUENCIAS\",IF(AND(N23=\"MENSUAL\",J23=\"MENSUAL\"),N17,IF(AND(N23=\"MENSUAL\",J23=\"TRIMESTRAL\"),\"REVISAR FRECUENCIAS\",IF(AND(N23=\"MENSUAL\",J23=\"SEMESTRAL\"),\"REVISAR FRECUENCIAS\",IF(AND(N23=\"MENSUAL\",J23=\"ANUAL\"),\"REVISAR FRECUENCIAS\",\"\"))))))))))))))))","v":0.9},{"$f":"IF(AND(N23=\"ANUAL\",J23=\"MENSUAL\"),N17/12+D49,IF(AND(N23=\"ANUAL\",J23=\"TRIMESTRAL\"),N17/4+D49,IF(AND(N23=\"ANUAL\",J23=\"SEMESTRAL\"),N17/2+D49,IF(AND(N23=\"SEMESTRAL\",J23=\"MENSUAL\"),N17/6+D49,IF(AND(N23=\"SEMESTRAL\",J23=\"TRIMESTRAL\"),N17/2+D49,IF(AND(N23=\"SEMESTRAL\",J23=\"SEMESTRAL\"),N17,IF(AND(N23=\"TRIMESTRAL\",J23=\"MENSUAL\"),N17/3+D49,IF(AND(N23=\"TRIMESTRAL\",J23=\"TRIMESTRAL\"),N17,IF(AND(N23=\"MENSUAL\",J23=\"MENSUAL\"),N17,\"\")))))))))","v":0.9},{"$f":"IF(AND(N23=\"ANUAL\",J23=\"MENSUAL\"),N17/12+E49,IF(AND(N23=\"ANUAL\",J23=\"TRIMESTRAL\"),N17/4+E49,IF(AND(N23=\"SEMESTRAL\",J23=\"MENSUAL\"),N17/6+E49,IF(AND(N23=\"SEMESTRAL\",J23=\"TRIMESTRAL\"),N17/2,IF(AND(N23=\"TRIMESTRAL\",J23=\"MENSUAL\"),N17/3+E49,IF(AND(N23=\"TRIMESTRAL\",J23=\"TRIMESTRAL\"),N17,IF(AND(N23=\"MENSUAL\",J23=\"MENSUAL\"),N17,\"\")))))))","v":""},{"$f":"IF(AND(N23=\"ANUAL\",J23=\"MENSUAL\"),N17/12+F49,IF(AND(N23=\"ANUAL\",J23=\"TRIMESTRAL\"),N17/4+F49,IF(AND(N23=\"SEMESTRAL\",J23=\"MENSUAL\"),N17/6+F49,IF(AND(N23=\"SEMESTRAL\",J23=\"TRIMESTRAL\"),N17/2+F49,IF(AND(N23=\"TRIMESTRAL\",J23=\"MENSUAL\"),N17/3,IF(AND(N23=\"TRIMESTRAL\",J23=\"TRIMESTRAL\"),N17,IF(AND(N23=\"MENSUAL\",J23=\"MENSUAL\"),N17,\"\")))))))","v":""},{"$f":"IF(AND($N$23=\"ANUAL\",$J$23=\"MENSUAL\"),$N$17/12+G49,IF(AND(N23=\"SEMESTRAL\",J23=\"MENSUAL\"),N17/6+G49,IF(AND(N23=\"TRIMESTRAL\",J23=\"MENSUAL\"),N17/3+G49,IF(AND(N23=\"MENSUAL\",J23=\"MENSUAL\"),N17,\"\"))))","v":""},{"$f":"IF(AND($N$23=\"ANUAL\",$J$23=\"MENSUAL\"),$N$17/12+H49,IF(AND(N23=\"SEMESTRAL\",J23=\"MENSUAL\"),N17/6+H49,IF(AND(N23=\"TRIMESTRAL\",J23=\"MENSUAL\"),N17/3+H49,IF(AND(N23=\"MENSUAL\",J23=\"MENSUAL\"),N17,\"\"))))","v":""},{"$f":"IF(AND($N$23=\"ANUAL\",$J$23=\"MENSUAL\"),$N$17/12+I49,IF(AND(N23=\"SEMESTRAL\",J23=\"MENSUAL\"),N17/6,IF(AND(N23=\"TRIMESTRAL\",J23=\"MENSUAL\"),N17/3,IF(AND(N23=\"MENSUAL\",J23=\"MENSUAL\"),N17,\"\"))))","v":""},{"$f":"IF(AND($N$23=\"ANUAL\",$J$23=\"MENSUAL\"),$N$17/12+J49,IF(AND(N23=\"SEMESTRAL\",J23=\"MENSUAL\"),N17/6+J49,IF(AND(N23=\"TRIMESTRAL\",J23=\"MENSUAL\"),N17/3+J49,IF(AND(N23=\"MENSUAL\",J23=\"MENSUAL\"),N17,\"\"))))","v":""},{"$f":"IF(AND($N$23=\"ANUAL\",$J$23=\"MENSUAL\"),$N$17/12+K49,IF(AND(N23=\"SEMESTRAL\",J23=\"MENSUAL\"),N17/6+K49,IF(AND(N23=\"TRIMESTRAL\",J23=\"MENSUAL\"),N17/3+K49,IF(AND(N23=\"MENSUAL\",J23=\"MENSUAL\"),N17,\"\"))))","v":""},{"$f":"IF(AND($N$23=\"ANUAL\",$J$23=\"MENSUAL\"),$N$17/12+L49,IF(AND(N23=\"SEMESTRAL\",J23=\"MENSUAL\"),N17/6+L49,IF(AND(N23=\"TRIMESTRAL\",J23=\"MENSUAL\"),N17/3,IF(AND(N23=\"MENSUAL\",J23=\"MENSUAL\"),N17,\"\"))))","v":""},{"$f":"IF(AND($N$23=\"ANUAL\",$J$23=\"MENSUAL\"),$N$17/12+M49,IF(AND(N23=\"SEMESTRAL\",J23=\"MENSUAL\"),N17/6+M49,IF(AND(N23=\"TRIMESTRAL\",J23=\"MENSUAL\"),N17/3+M49,IF(AND(N23=\"MENSUAL\",J23=\"MENSUAL\"),N17,\"\"))))","v":""},{"$f":"IF(AND($N$23=\"ANUAL\",$J$23=\"MENSUAL\"),$N$17/12+N49,IF(AND(N23=\"SEMESTRAL\",J23=\"MENSUAL\"),N17/6+N49,IF(AND(N23=\"TRIMESTRAL\",J23=\"MENSUAL\"),N17/3+N49,IF(AND(N23=\"MENSUAL\",J23=\"MENSUAL\"),N17,\"\"))))","v":""}]
[]
[null,null,"NIVEL DE SEGREGACIÓN *"]
[null,null,"UNIDAD SEGREGADA (Ej. Facultad, Programa Académico, Área)",null,null,null,"RESULTADO",null,null,null,"ANÁLISIS DE DATOS SEGREGADO"]
[]
[]
[]
[]
[]
[]
[]
[]
[]
[]
[]
[]
[]
[]
[]
[]
[]
[]
[null,null,null,null,null,null,"Estratégico",null,null,"Eficacia"]
[null,null,null,null,null,null,"Misional",null,null,"Eficiencia"]
[null,null,null,null,null,null,"Apoyo",null,null,"Acreditación"]
[null,null,null,null,null,null,"Seguimiento, Medición, Análisis y Evaluación",null,null,"Positiva"]
[null,null,null,null,null,null,"Direccionamiento Estratégico",null,null,"Negativa"]
[null,null,null,null,null,null,"Planeación Institucional",null,null,"Por Unidad Regional"]
[null,null,null,null,null,null,"Proyectos Especiales y Relaciones Interinstitucionales",null,null,"Por Facultad"]
[null,null,null,null,null,null,"Sistemas Integrados",null,null,"Por Programa Académico"]
[null,null,null,null,null,null,"Autoevaluación y Acreditación",null,null,"Por área"]
[null,null,null,null,null,null,"Comunicaciones",null,null,"Por Laboratorio"]
[null,null,null,null,null,null,"Formación y Aprendizaje",null,null,"Otros"]
[null,null,null,null,null,null,"Ciencia, Tecnología e Innovación",null,null,"No Aplica"]
[null,null,null,null,null,null,"Interacción Social Universitaria"]
[null,null,null,null,null,null,"Bienestar Universitario"]
[null,null,null,null,null,null,"Admisiones y Registro"]
[null,null,null,null,null,null,"Graduados"]
[null,null,null,null,null,null,"Dialogando con el Mundo"]
[null,null,null,null,null,null,"Talento Humano"]
[null,null,null,null,null,null,"Jurídica"]
[null,null,null,null,null,null,"Financiera"]
[null,null,null,null,null,null,"Sistemas y Tecnología"]
[null,null,null,null,null,null,"Bienes y Servicios"]
[null,null,null,null,null,null,"Documental"]
[null,null,null,null,null,null,"Apoyo Académico"]
[null,null,null,null,null,null,"Control Interno"]
[null,null,null,null,null,null,"Control Disciplinario"]
[null,null,null,null,null,null,"Servicio de Atención al Ciudadano"]

{"sheet":"MIU-5 ","index":8,"n_rows":101,"n_cols":15,"rows_kept":101,"cut":false,"hidden":false,"merged":[[15,2,15,14],[8,2,8,14],[9,2,10,14],[11,2,11,3],[11,4,11,7],[11,8,11,9],[11,10,11,14],[12,2,12,3],[12,4,12,14],[13,2,13,3],[13,4,13,14],[14,2,14,14],[1,1,3,2],[4,2,7,3],[4,4,4,11],[4,12,4,14],[5,4,5,11],[5,12,5,14],[6,4,7,11],[6,12,6,14],[7,12,7,14],[54,2,54,14],[55,2,55,5],[16,15,17,15],[17,2,18,3],[17,4,17,5],[17,6,17,10],[17,11,18,12],[17,13,18,14],[18,4,18,5],[18,6,18,10],[16,2,16,3],[16,4,16,6],[16,7,16,8],[16,9,16,10],[16,11,16,12],[16,13,16,14],[22,2,22,3],[22,4,22,6],[22,7,23,8],[22,9,23,10],[22,11,23,12],[23,4,23,6],[61,2,61,5],[61,6,61,9],[61,10,61,14],[58,2,58,5],[19,2,21,3],[19,4,21,6],[19,7,21,8],[19,9,21,10],[19,11,19,14],[22,13,23,14],[23,2,23,3],[26,2,45,8],[45,9,45,14],[25,2,25,14],[44,9,44,14],[47,2,47,14],[57,2,57,5],[57,6,57,9],[57,10,57,14],[60,2,60,5],[60,6,60,9],[60,10,60,14],[58,6,58,9],[58,10,58,14],[59,2,59,5],[59,6,59,9],[59,10,59,14],[55,6,55,9],[55,10,55,14],[56,2,56,5],[56,6,56,9],[56,10,56,14],[26,15,27,15],[27,9,34,14],[35,9,35,14],[36,9,42,14],[43,9,43,14],[26,9,26,14],[64,2,64,5],[64,6,64,9],[64,10,64,14],[62,2,62,5],[62,6,62,9],[62,10,62,14],[63,2,63,5],[63,6,63,9],[63,10,63,14]]}
[]
[null,"      REGRESAR"]
[]
[]
[null,null,null,null,"MACROPROCESO ESTRATÉGICO",null,null,null,null,null,null,null,"CÓDIGO: ESGr027"]
[null,null,null,null,"PROCESO GESTIÓN SISTEMAS INTEGRADOS - CALIDAD",null,null,null,null,null,null,null,"VERSIÓN: 8"]
[null,null,null,null,"MATRIZ DE MEDICIÓN Y SEGUIMIENTO A LOS PROCESOS DE GESTIÓN",null,null,null,null,null,null,null,"VIGENCIA: 2023-07-28"]
[null,null,null,null,null,null,null,null,null,null,null,null,"PÁGINA: 6 de 7"]
[]
[null,null,"FICHA DE INDICADOR"]
[]
[null,null,"MACROPROCESO",null,"Misional",null,null,null,"NOMBRE DEL INDICADOR",null,"Vinculación efectiva con la comunidad y el sector productivo"]
[null,null,"PROCESO GESTIÓN",null,"Interacción Social Universitaria"]
[null,null,"RESPONSABLE DE MEDICIÓN",null,"Dirección de Interacción Universitaria"]
[]
[null,null,"1. COMPORTAMIENTO DE INDICADOR"]
[null,null,"CLASIFICACIÓN DE LA MEDICIÓN",null,1,null,null,"TIPO DE INDICADOR",null,"Acreditación",null,"META ANUAL",null,0.8]
[null,null,"FORMULA",null,"NUMERADOR",null,"# convenios en uso *100",null,null,null,null,"UNIDAD DE MEDIDA",null,"Porcentual"]
[null,null,null,null,"DENOMINADOR",null,"(# total de convenios vigentes)"]
[null,null,"TENDENCIA",null,"Positiva",null,null,"NIVEL DE SEGREGACIÓN *",null,"Por Programa Académico",null,"ESCALA"]
[null,null,null,null,null,null,null,null,null,null,null,"Deficiente","Aceptable","Bueno","Excelente"]
[null,null,null,null,null,null,null,null,null,null,null,"0 - 59,9%","60% - 69,9%","70% - 79,9%","80% - 100%"]
[null,null,"ORIGEN DE DATOS NUMERADOR",null,"Prácticas y pasantías realizadas en organizaciones con convenio",null,null,"FRECUENCIA DE LA MEDICIÓN",null,"SEMESTRAL",null,"FRECUENCIA DE RESULTADO",null,"SEMESTRAL"]
[null,null,"ORIGEN DE DATOS DENOMINADOR",null,"Convenios vigentes "]
[]
[null,null,"RESULTADOS"]
[null,null,null,null,null,null,null,null,null,"ANÁLISIS DE DATOS"]
[null,null,null,null,null,null,null,null,null,"PRIMER SEMESTRE 2024.1: convenios se da uso a 256 convenios contando con diferentes decanaturas y programas. Se cumple la meta alcanzando un porcentaje del 82%.\n\nSEGUNDO SEMESTRE 2024.2: convenios se da uso a 259 convenios contando con diferentes decanaturas y programas. Se cumple la meta alcanzando un porcentaje del 82%."]
[]
[]
[]
[]
[]
[]
[]
[null,null,null,null,null,null,null,null,null,"ACCIÓN FORMULADA"]
[null,null,null,null,null,null,null,null,null,"Se establece utilización de convenios vigentes en cada unidad regional y programa asdcrito a la misma."]
[]
[]
[]
[]
[]
[]
[null,null,null,null,null,null,null,null,null,"RESPONSABLE "]
[null,null,null,null,null,null,null,null,null,{"$f":"E14","v":"Dirección de Interacción Universitaria"}]
[]
[]
[null,null,"PERIODO DE EVALUACIÓN"]
[null,null,"MES",{"$f":"IF(J23=\"MENSUAL\",\"ENERO\",IF(J23=\"TRIMESTRAL\",\"MARZO\",IF(J23=\"SEMESTRAL\",\"JUNIO\",IF(J23=\"ANUAL\",YEAR(TODAY()),\"\"))))","v":"JUNIO"},{"$f":"IF(J23=\"MENSUAL\",\"FEBRERO\",IF(J23=\"TRIMESTRAL\",\"JUNIO\",IF(J23=\"SEMESTRAL\",\"DICIEMBRE\",\"\")))","v":"DICIEMBRE"},{"$f":"IF(J23=\"MENSUAL\",\"MARZO\",IF(J23=\"TRIMESTRAL\",\"SEPTIEMBRE\",\"\"))","v":""},{"$f":"IF(J23=\"MENSUAL\",\"ABRIL\",IF(J23=\"TRIMESTRAL\",\"DICIEMBRE\",\"\"))","v":""},{"$f":"IF(J23=\"MENSUAL\",\"MAYO\",\"\")","v":""},{"$f":"IF(J23=\"MENSUAL\",\"JUNIO\",\"\")","v":""},{"$f":"IF(J23=\"MENSUAL\",\"JULIO\",\"\")","v":""},{"$f":"IF(J23=\"MENSUAL\",\"AGOSTO\",\"\")","v":""},{"$f":"IF(J23=\"MENSUAL\",\"SEPTIEMBRE\",\"\")","v":""},{"$f":"IF(J23=\"MENSUAL\",\"OCTUBRE\",\"\")","v":""},{"$f":"IF(J23=\"MENSUAL\",\"NOVIEMBRE\",\"\")","v":""},{"$f":"IF(J23=\"MENSUAL\",\"DICIEMBRE\",\"\")","v":""}]
[null,null,{"$f":"G18","v":"# convenios en uso *100"},256,259]
[null,null,{"$f":"G19","v":"(# total de convenios vigentes)"},314,314]
[null,null,"VALOR ",{"$f":"IFERROR(IF($E$17=1,D50/D51,IF($E$17=2,D50,\"\")),\"\")","v":0.8152866242038217},{"$f":"IFERROR(IF($E$17=1,E50/E51,IF($E$17=2,E50,\"\")),\"\")","v":0.82484076433121023},null,null,"","","","","","","",""]
[null,null,"META PONDERADA",{"$f":"IF(AND(N23=\"ANUAL\",J23=\"MENSUAL\"),N17/12,IF(AND(N23=\"ANUAL\",J23=\"TRIMESTRAL\"),N17/4,IF(AND(N23=\"ANUAL\",J23=\"SEMESTRAL\"),N17/2,IF(AND(N23=\"ANUAL\",J23=\"ANUAL\"),N17,IF(AND(N23=\"SEMESTRAL\",J23=\"MENSUAL\"),N17/6,IF(AND(N23=\"SEMESTRAL\",J23=\"TRIMESTRAL\"),N17/2,IF(AND(N23=\"SEMESTRAL\",J23=\"SEMESTRAL\"),N17,IF(AND(N23=\"SEMESTRAL\",J23=\"ANUAL\"),\"REVISAR FRECUENCIAS\",IF(AND(N23=\"TRIMESTRAL\",J23=\"MENSUAL\"),N17/3,IF(AND(N23=\"TRIMESTRAL\",J23=\"TRIMESTRAL\"),N17,IF(AND(N23=\"TRIMESTRAL\",J23=\"SEMESTRAL\"),\"REVISAR FRECUENCIAS\",IF(AND(N23=\"TRIMESTRAL\",J23=\"ANUAL\"),\"REVISAR FRECUENCIAS\",IF(AND(N23=\"MENSUAL\",J23=\"MENSUAL\"),N17,IF(AND(N23=\"MENSUAL\",J23=\"TRIMESTRAL\"),\"REVISAR FRECUENCIAS\",IF(AND(N23=\"MENSUAL\",J23=\"SEMESTRAL\"),\"REVISAR FRECUENCIAS\",IF(AND(N23=\"MENSUAL\",J23=\"ANUAL\"),\"REVISAR FRECUENCIAS\",\"\"))))))))))))))))","v":0.8},{"$f":"IF(AND(N23=\"ANUAL\",J23=\"MENSUAL\"),N17/12+D53,IF(AND(N23=\"ANUAL\",J23=\"TRIMESTRAL\"),N17/4+D53,IF(AND(N23=\"ANUAL\",J23=\"SEMESTRAL\"),N17/2+D53,IF(AND(N23=\"SEMESTRAL\",J23=\"MENSUAL\"),N17/6+D53,IF(AND(N23=\"SEMESTRAL\",J23=\"TRIMESTRAL\"),N17/2+D53,IF(AND(N23=\"SEMESTRAL\",J23=\"SEMESTRAL\"),N17,IF(AND(N23=\"TRIMESTRAL\",J23=\"MENSUAL\"),N17/3+D53,IF(AND(N23=\"TRIMESTRAL\",J23=\"TRIMESTRAL\"),N17,IF(AND(N23=\"MENSUAL\",J23=\"MENSUAL\"),N17,\"\")))))))))","v":0.8},{"$f":"IF(AND(N23=\"ANUAL\",J23=\"MENSUAL\"),N17/12+E53,IF(AND(N23=\"ANUAL\",J23=\"TRIMESTRAL\"),N17/4+E53,IF(AND(N23=\"SEMESTRAL\",J23=\"MENSUAL\"),N17/6+E53,IF(AND(N23=\"SEMESTRAL\",J23=\"TRIMESTRAL\"),N17/2,IF(AND(N23=\"TRIMESTRAL\",J23=\"MENSUAL\"),N17/3+E53,IF(AND(N23=\"TRIMESTRAL\",J23=\"TRIMESTRAL\"),N17,IF(AND(N23=\"MENSUAL\",J23=\"MENSUAL\"),N17,\"\")))))))","v":""},{"$f":"IF(AND(N23=\"ANUAL\",J23=\"MENSUAL\"),N17/12+F53,IF(AND(N23=\"ANUAL\",J23=\"TRIMESTRAL\"),N17/4+F53,IF(AND(N23=\"SEMESTRAL\",J23=\"MENSUAL\"),N17/6+F53,IF(AND(N23=\"SEMESTRAL\",J23=\"TRIMESTRAL\"),N17/2+F53,IF(AND(N23=\"TRIMESTRAL\",J23=\"MENSUAL\"),N17/3,IF(AND(N23=\"TRIMESTRAL\",J23=\"TRIMESTRAL\"),N17,IF(AND(N23=\"MENSUAL\",J23=\"MENSUAL\"),N17,\"\")))))))","v":""},{"$f":"IF(AND($N$23=\"ANUAL\",$J$23=\"MENSUAL\"),$N$17/12+G53,IF(AND(N23=\"SEMESTRAL\",J23=\"MENSUAL\"),N17/6+G53,IF(AND(N23=\"TRIMESTRAL\",J23=\"MENSUAL\"),N17/3+G53,IF(AND(N23=\"MENSUAL\",J23=\"MENSUAL\"),N17,\"\"))))","v":""},{"$f":"IF(AND($N$23=\"ANUAL\",$J$23=\"MENSUAL\"),$N$17/12+H53,IF(AND(N23=\"SEMESTRAL\",J23=\"MENSUAL\"),N17/6+H53,IF(AND(N23=\"TRIMESTRAL\",J23=\"MENSUAL\"),N17/3+H53,IF(AND(N23=\"MENSUAL\",J23=\"MENSUAL\"),N17,\"\"))))","v":""},{"$f":"IF(AND($N$23=\"ANUAL\",$J$23=\"MENSUAL\"),$N$17/12+I53,IF(AND(N23=\"SEMESTRAL\",J23=\"MENSUAL\"),N17/6,IF(AND(N23=\"TRIMESTRAL\",J23=\"MENSUAL\"),N17/3,IF(AND(N23=\"MENSUAL\",J23=\"MENSUAL\"),N17,\"\"))))","v":""},{"$f":"IF(AND($N$23=\"ANUAL\",$J$23=\"MENSUAL\"),$N$17/12+J53,IF(AND(N23=\"SEMESTRAL\",J23=\"MENSUAL\"),N17/6+J53,IF(AND(N23=\"TRIMESTRAL\",J23=\"MENSUAL\"),N17/3+J53,IF(AND(N23=\"MENSUAL\",J23=\"MENSUAL\"),N17,\"\"))))","v":""},{"$f":"IF(AND($N$23=\"ANUAL\",$J$23=\"MENSUAL\"),$N$17/12+K53,IF(AND(N23=\"SEMESTRAL\",J23=\"MENSUAL\"),N17/6+K53,IF(AND(N23=\"TRIMESTRAL\",J23=\"MENSUAL\"),N17/3+K53,IF(AND(N23=\"MENSUAL\",J23=\"MENSUAL\"),N17,\"\"))))","v":""},{"$f":"IF(AND($N$23=\"ANUAL\",$J$23=\"MENSUAL\"),$N$17/12+L53,IF(AND(N23=\"SEMESTRAL\",J23=\"MENSUAL\"),N17/6+L53,IF(AND(N23=\"TRIMESTRAL\",J23=\"MENSUAL\"),N17/3,IF(AND(N23=\"MENSUAL\",J23=\"MENSUAL\"),N17,\"\"))))","v":""},{"$f":"IF(AND($N$23=\"ANUAL\",$J$23=\"MENSUAL\"),$N$17/12+M53,IF(AND(N23=\"SEMESTRAL\",J23=\"MENSUAL\"),N17/6+M53,IF(AND(N23=\"TRIMESTRAL\",J23=\"MENSUAL\"),N17/3+M53,IF(AND(N23=\"MENSUAL\",J23=\"MENSUAL\"),N17,\"\"))))","v":""},{"$f":"IF(AND($N$23=\"ANUAL\",$J$23=\"MENSUAL\"),$N$17/12+N53,IF(AND(N23=\"SEMESTRAL\",J23=\"MENSUAL\"),N17/6+N53,IF(AND(N23=\"TRIMESTRAL\",J23=\"MENSUAL\"),N17/3+N53,IF(AND(N23=\"MENSUAL\",J23=\"MENSUAL\"),N17,\"\"))))","v":""}]
[]
[null,null,"NIVEL DE SEGREGACIÓN PRIMER SEMESTRE:"]
[null,null,"UNIDAD SEGREGADA (Ej. Facultad, Programa Académico, Área)",null,null,null,"RESULTADO",null,null,null,"ANÁLISIS DE DATOS SEGREGADO"]
[null,null,"Facultad Ciencias Administrativas, Económicas y Contables",null,null,null,{"$f":"50/259","v":0.19305019305019305},null,null,null,"50 convenios en uso, esta facultad para el primer periodo fue la mas representativa, y es normal la reducciòn de el uso por la cantidad de solictudes disminuye sustancialmente."]
[null,null,"Facultad de Ciencias Agropecuarias",null,null,null,{"$f":"86/259","v":0.33204633204633205},null,null,null,"86 convenios en uso,el auge de la facultad y sus porgramnas lo han potencializado dando relevancia en las solicitudes de los diferentes sectores."]
[null,null,"Facultad Ciencias del Deporte",null,null,null,{"$f":"15/259","v":5.7915057915057917E-2},null,null,null,"15 convenios en uso,esta facultad ubico mas estudiantes dando uso a convenios no reportados en primer periodo de 2024"]
[null,null,"Facultad de Educación",null,null,null,{"$f":"65/259","v":0.25096525096525096},null,null,null,"65 convenios reportados en uso, indica q para este period segundo semestre 2024 se destaca esta facultad, ya que para el primer periodo no reporto uso"]
[null,null,"Facultad de Ciencias Sociales, Humanidades y Ciencias Políticas",null,null,null,{"$f":"8/259","v":3.0888030888030889E-2},null,null,null,"8 convenio en uso, facultad que para el primer periodo 2024 no reporto, positivamnete para segundo da uso a convenios aumento sustancialmente.."]
[null,null,"Facultad de Ingeniería",null,null,null,{"$f":"18/256","v":7.03125E-2},null,null,null,"18 convenios en uso, en las diferentes unidades regionales se generaran alternativas y estartegis para conseguir mas alianzas estrategicas."]
[null,null,"Facultad de Ciencias de la Salud",null,null,null,{"$f":"39/256","v":0.15234375},null,null,null,"39 convenios en usoesta facultad ahora cuenta con el programa de psicologia el cual aporta significativamente a este."]
[null,null,"Posgrados",null,null,null,0]
[null,null,"Dirección Administrativa"]
[]
[]
[]
[]
[]
[]
[]
[]
[]
[null,null,null,null,null,null,"Estratégico",null,null,"Eficacia"]
[null,null,null,null,null,null,"Misional",null,null,"Eficiencia"]
[null,null,null,null,null,null,"Apoyo",null,null,"Acreditación"]
[null,null,null,null,null,null,"Seguimiento, Medición, Análisis y Evaluación",null,null,"Positiva"]
[null,null,null,null,null,null,"Direccionamiento Estratégico",null,null,"Negativa"]
[null,null,null,null,null,null,"Planeación Institucional",null,null,"Por Unidad Regional"]
[null,null,null,null,null,null,"Proyectos Especiales y Relaciones Interinstitucionales",null,null,"Por Facultad"]
[null,null,null,null,null,null,"Sistemas Integrados",null,null,"Por Programa Académico"]
[null,null,null,null,null,null,"Autoevaluación y Acreditación",null,null,"Por área"]
[null,null,null,null,null,null,"Comunicaciones",null,null,"Por Laboratorio"]
[null,null,null,null,null,null,"Formación y Aprendizaje",null,null,"Otros"]
[null,null,null,null,null,null,"Ciencia, Tecnología e Innovación",null,null,"No Aplica"]
[null,null,null,null,null,null,"Interacción Social Universitaria"]
[null,null,null,null,null,null,"Bienestar Universitario"]
[null,null,null,null,null,null,"Admisiones y Registro"]
[null,null,null,null,null,null,"Graduados"]
[null,null,null,null,null,null,"Dialogando con el Mundo"]
[null,null,null,null,null,null,"Talento Humano"]
[null,null,null,null,null,null,"Jurídica"]
[null,null,null,null,null,null,"Financiera"]
[null,null,null,null,null,null,"Sistemas y Tecnología"]
[null,null,null,null,null,null,"Bienes y Servicios"]
[null,null,null,null,null,null,"Documental"]
[null,null,null,null,null,null,"Apoyo Académico"]
[null,null,null,null,null,null,"Control Interno"]
[null,null,null,null,null,null,"Control Disciplinario"]
[null,null,null,null,null,null,"Servicio de Atención al Ciudadano"]

{"sheet":"ACTUALIZACIONES ","index":9,"n_rows":29,"n_cols":5,"rows_kept":29,"cut":false,"hidden":false,"merged":[[1,2,1,3],[1,1,4,1],[25,1,25,4],[28,1,28,4],[6,1,6,4],[3,2,4,3],[2,2,2,3],[8,1,10,1],[8,3,10,3],[8,4,10,4]]}
[]
[null,null,"MACROPROCESO ESTRATÉGICO",null,"CÓDIGO: ESGr027"]
[null,null,"PROCESO GESTIÓN SISTEMAS INTEGRADOS - CALIDAD",null,"VERSIÓN: 8"]
[null,null,"MATRIZ DE MEDICIÓN Y SEGUIMIENTO A LOS PROCESOS DE GESTIÓN",null,"VIGENCIA: 2023-07-28"]
[null,null,null,null,"PÁGINA: 7 de 7"]
[]
[null,"CONTROL DE ACTUALIZACIONES"]
[null,"FECHA","DESCRIPCIÓN DE LA ACTUALIZACIÓN","RESPONSABLE","CARGO"]
[null,"2020-03-31","ABS\nSe agregan dos nuevos indicadores para Acreditación \"Mantenimiento a infraestructura de espacios académicos\" y \"Renovación y actualización de obras con enfoque inclusivo\"","Jaime Elder Acosta Ramírez","Coordinador de Calidad"]
[null,null,"MBU\nSe agrega un nuevo indicador para Acreditación \"Participación de la Comunidad Universitaria\" "]
[null,null,"MIU\nSe agrega un nuevo indicador para Acreditación \"Vinculación efectiva con la comunidad y el sector productivo\" "]
[null,"2022-03-11","Se incrementa la meta del indicador MIU-1 \"Evaluación de las actividades desarrolladas - Educación Continuada\" de 80% a 85% para la vigencia 2022.\nSe incrementa la meta del indicador MIU-4 \"Evaluación de las actividades de Proyección Social\" de 80% a 90% para la vigencia 2022.","Aura Esther Álvarez Lara","Directora de Interacción Social Universitaria (F.A)"]
[null,"2023-03-16","MIU-1: Se actualiza el nombre del indicador de la siguiente manera: Evaluación de las actividades desarrolladas - Educación Continuada a Satisfacción del usuario del servicio de la Educación Continuada.\nSe incrementa la meta de un 85% a un 90%. Adicional, de la mano con el formato MIUr015 se generará un formulario digital lo que permitirá agilizar la recepción de los resultados y posterior, analizarlos. \nMIU-2: Se actualiza el nombre del indicador de la siguiente manera: Evaluación del pasante o practicante hacia la empresa o institución a Satisfacción del estudiante frente al desempeño en la práctica de pasantía.\nSe incrementa la meta de un 80% a un 85%.\nMIU-3: Se actualiza el nombre del indicador de la siguiente manera: \"Evaluación de la Institución o Empresa hacia el pasante o practicante\" a \"Satisfacción de la Institución o Empresa hacia el desempeño de la práctica o pasantía\".\nSe incrementa la meta de un 80% a un 95%.\nMIU-4: Teniendo en cuenta que la meta fue alcanzada en el último corte del año 2022, se incrementa la meta de un 90% a un 95%","Ena Patricia Gil Bellido","Directora de Interacción Social Universitaria"]
[null,"2023-07-04","De conformidad con la decisión tomada en sesión extraordinaria del Comité SAC del 04 de julio de 2023, \"Los miembros del Comité SAC aprobaron por unanimidad, transferir del proceso Formación y Aprendizaje al proceso de Interacción Social Universitaria el indicador:  MFA-17 - \"Vinculación efectiva con la comunidad y el sector productivo\". Para ISU queda nombrado el indicador como MIU-5.","Ena Patricia Gil Bellido","Directora de Interacción Social Universitaria"]
[null,"2023-08-18","Se incorpora Planificación de Actividades para cada objetivo específico","Ena Patricia Gil Bellido","Directora de Interacción Social Universitaria"]
[null,"2024-07-22","MIU-1 Satisfacción del usuario del servicio de la Educación Continuada: Se mantiene el indicador con la meta en 90%.\nMIU-2: Satisfacción del estudiante frente al escenario de práctica o pasantía: Se encuentra pendiente la proyección y definir el responsable de la medición.\nMIU-3 Satisfacción de la Institución o Empresa hacia el desempeño de la práctica o pasantía: Se encuentra pendiente la proyección y definir el responsable de la medición.\nMIU-4 Evaluación de las actividades de Proyección Social: Se mantiene el indicador con la meta en 95%.\nMIU-5 Vinculación efectiva con la comunidad y el sector productivo: Se mantiene el indicador con la meta en 80%.","Ena Patricia Gil Bellido","Directora de Interacción Social Universitaria"]
[]
[]
[]
[]
[]
[]
[]
[]
[]
[null,"Diagonal 18 No. 20-29 Fusagasugá – Cundinamarca\nTeléfono (601)  8281483 Línea Gratuita 018000180414\nwww.ucundinamarca.edu.co   E-mail:  info@ucundinamarca.edu.co\nNIT: 890.680.062-2                                                                             "]
[]
[]
[null,"Documento controlado por el Sistema de Gestión de la Calidad\nAsegúrese que corresponde a la última versión consultando el Portal Institucional"]

{"sheet":"ITEM","index":10,"n_rows":4,"n_cols":3,"rows_kept":4,"cut":false,"hidden":true,"merged":[]}
["MENSUAL",null,"NÚMERO"]
["TRIMESTRAL",null,"PORCENTAJE"]
["SEMESTRAL"]
["ANUAL"]